Workbook

Sheet User Guide
A1: Disclaimer: This is a DRAFT and PRELIMINARY WORK PRODUCT, prepared by 3TP Ventures and meant for the internal testing and review by the City of Charlottesville staff
A2: Note: All Figures and values in this document are preliminary and subject to validation and confirmation; any financial figures in this document are estimates, not definitive, and not to be considered as valuations
B4: CHARLOTTESVILLE AFFORDABLE HOUSING TAX ABATEMENT STUDY
B5: Housing Development Feasibility Model
B6: version current as of 12/05/2025
B7: previous update: 11/21/25
B9: This workbook should be used to:
B10: - be a resource for housing development feasibility within the City of Charlottesville
B11: - explore financial implications of different public policies, regulations, or incentives as they relate to development feasbility
B12: - be a repository for local development cost and revenue conditions, including hard and soft development costs, land costs, and rental revenues
B14: This workbook should not be used to:
B15: - replace more detailed pro-forma analyses for specific projects by the City or outside development parties
B18: This workbook consists of…
B19: - the Charlottesville Development Feasibility Evaluator Tool, the primary user interface for evaluating fiscal impacts of development and policy interventions
B20: - a feasibility output page that allows users to summarize financial findings from the Feasibility Evaluator tool across all housing types and submarkets
B21: - Key model assumptions, such as costs, revenues, and other needed development assumptions
B23: Workbook Instructions
G24: Instructions for each workbook section can be found on the | H24: blue tabs | I24: that are located in front of the | L24: grey tabs | M24: that serve as the primary user tabs
B27: Enabling Macros
B28: - This workbook is macro enabled. Macros are not required for evaluating individual projects, but they are required for using any buttons.
B29: - Information on enabling macros can be found via this link: | H29: https://support.microsoft.com/en-us/office/enable-or-disable-macros-in-microsoft-365-files-12b036fd-d140-4e74-b45e-16fed1a7e5c6

Sheet Model Tool Instructions >>
B3: Model Tool Instructions >>
C5: The following tab consists of:
C6: » | D6: Charlottesville Development Feasiblity Assessment Project Evaluator
E7: This tool allows users to examine the development feasibility of six different building types (from single family to hise-rise) across different land and rent tiers (Tiers 1 -5), and analyze the fiscal implications of different public interventions and incentives
E8: This is the primary evaluative tool in this workbook, and is the primary user interface
C10: » | D10: General Use Instructions:
E11: Users enter or select key information about their project in the Project Inputs section, and the Yield to Cost and IRR results are presented (see 'Glossary' tab for defitions of terms) in the first column of the Overall Findings section.
E12: Additional findings, such as estimated annual tax revenue or monthly rent "lost" due to inclusionary zoning are also provided
E13: By entering or selecting a policy intervention in the Policy Testing section, a separate Yield to Cost and IRR calculation is provided in the second column under Overall Findings
E15: Cells this color | G15: allow users to enter or select project details
E16: These cells are either drop-down menus or direct entry cells.
E17: Drop-down menus are highlighted by a thicker outline and the word <- SELECT
E18: Direct entry cells have no thick outline and are highlighted by the word <- ENTER
E19: These cells are mostly found in the 'Project Inputs' and 'Policy Testing' sections of the worksheet, but are scattered throughout
E21: Cells this color | G21: are calculations and/or formulas, and are generally not meant to be directly changed by the user
E22: Cell formulas and calculations often reference other model assumptions or typical financial methods.
E23: For information on how this model was developed, please refer to [INSERT TECH MEMO NAME HERE]
F25: If needed, the 'Reset to Default' button here or on the FeasibilityEvaluator worksheet will reset all formulas and links to their original state.
H28: <----NOTE: THIS WON'T BE ACTIVATED UNTIL TOOL FINALIZATION

Sheet FeasibilityEvaluator
C3: CHARLOTTESVILLE DEVELOPMENT FEASIBILITY ASSESSMENT | Feasibility Evaluator | J3: OVERALL FINDINGS
C5: PROJECT INPUTS | J5: WITHOUT INCENTIVES | L5: WITH INCENTIVES | N5: DIFFERENCE
C7: Development Type | D7: Mid Rise | E7: <- SELECT | F7: Affordable Units | J7: Yield on Cost | L7: Yield on Cost | N7: Yield
C8: Submarket | D8: Tier 2 | E8: <- SELECT | F8: AMI Band 1 | G8: 0.6 | H8: <- SELECT | J8: =Weighted_NOI*Total_Units*12/Total_Project_Costs -> 0.04798663377 | L8: =Weighted_Incentive_NOI*Total_Units*12/Incentive_Total_Project_Costs -> 0.04798663377 | N8: =Incentive_Yield_on_Cost-Yield_on_Cost -> 0
C9: Buildings in Project | D9: =_xlfn.XLOOKUP(Building_Type,OtherAssumptions!B54:B59,_xlfn.XLOOKUP(Price_Land_Context,OtherAssumptions!C53:G53,OtherAssumptions!C54:G59)) -> 3 | F9: % of Units | G9: 0.1 | H9: <- ENTER | J9: =IF(J8="TBD","",IF(J8>=Financials!C$19,"Likely Feasible",IF(AND(J8<Financials!C$19,J8>=Financials!C$20),"Possibly Feasible","Unlikely Feasibility"))) -> Unlikely Feasibility | L9: =IF(L8="TBD","",IF(L8>=Financials!C19,"Likely Feasible",IF(AND(L8<Financials!C19,L8>=Financials!C20),"Possibly Feasible","Unlikely Feasibility"))) -> Unlikely Feasibility
C10: Avg Units per Building | D10: =_xlfn.XLOOKUP(Building_Type,HardCosts!B5:B10,HardCosts!C5:C10) -> 45 | F10: AMI Band 2 | G10: 0.8 | H10: <- SELECT
C11: Total Units | D11: =Buildings*Avg_Units_per_Building -> 135 | F11: % of Units | G11: 0 | H11: <- ENTER | J11: IRR | L11: IRR | N11: IRR
C12: Parking Type | D12: =_xlfn.XLOOKUP(Building_Type,HardCosts!B22:B27,_xlfn.XLOOKUP(Price_Land_Context,HardCosts!C21:G21,HardCosts!C22:G27)) -> Above Ground Deck | F12: AMI Band 3 | G12: 1 | H12: <- SELECT | J12: =XIRR(I136:I496,L136:L496,0.05) -> 0.03269106448 | L12: =XIRR(I501:I861,L501:L861,0.05) -> 0.03269106448 | N12: =Incentive_IRR-IRR -> 0
C13: Spaces per Unit | D13: =_xlfn.XLOOKUP(Building_Type,HardCosts!B30:B35,_xlfn.XLOOKUP(Price_Land_Context,HardCosts!C29:G29,HardCosts!C30:G35)) -> 0.75 | F13: % of Units | G13: 0 | H13: <- ENTER | J13: =IF(J12>=Financials!C25,"Likely Feasible",IF(AND(J12<Financials!C25,J12>=Financials!C26),"Possibly Feasible","Unlikely Feasibility")) -> Unlikely Feasibility | L13: =IF(L12>=Financials!C25,"Likely Feasible",IF(AND(L12<Financials!C25,L12>=Financials!C26),"Possibly Feasible","Unlikely Feasibility")) -> Unlikely Feasibility
F14: Total Affordable Units | G14: =SUM(AMI_Band_1_Pct,AMI_Band_2_Pct,AMI_Band_3_Pct)*Total_Units -> 13.5
D15: Cost Adjustments
C16: Construction | D16: Standard | E16: <- SELECT
C17: Land | D17: Standard | E17: <- SELECT | J17: OTHER SUMMARIES OF INCENTIVE COSTS & BENEFITS
C18: Rent | D18: Standard | E18: <- SELECT
J19: Inclusionary Zoning Rent Change | L19: Abatement Provides | N19: Difference
C20: POLICY TESTING | J20: =(Incentive_Weighted_Avg_Rent-Weighted_Avg_Rent)*Units_Affordable -> -15460.36875 | L20: =(Weighted_Incentive_NOI-Weighted_NOI)*Total_Units -> 0 | N20: =L20+J20 -> -15460.36875
J21: per month | L21: per month
C22: Tax Abatement | D22: No | E22: <- SELECT | F22: Tax Abatement | G22: No | H22: <- SELECT
C23: Rent Gap Model | D23: Yes/No | F23: Base/Increment Model | G23: Yes/No | J23: Annual New Tax Revenue | L23: Annual Revenue Waived | N23: Percent
C24: Abatement % | D24: 0.5 | E24: <- ENTER | F24: Abatement % | G24: 0.5 | H24: <- ENTER | J24: =12*G122*Total_Affordable_Units+12*G115*(Total_Units-Total_Affordable_Units)-Pre_Dev_Property_Tax -> 565951.5474 | L24: =Abatement_Provides*12 -> 0 | N24: Revenue Waived
C25: Units Abated | D25: Affordable Units | E25: <- SELECT | F25: Units Abated | G25: Affordable Units | H25: <- SELECT | N25: =Annual_Revenue_Waived/(Annual_Revenue_Waived+Annual_New_Tax_Revenue) -> 0
C26: Years | D26: 10 | E26: <- ENTER | F26: Years | G26: =D26 -> 10 | J26: Total New Tax Revenue | L26: Total Revenue Waived
J27: =Annual_New_Tax_Revenue*Abatement_Years -> 5659515.474 | L27: =Annual_Revenue_Waived*Abatement_Years -> 0
C28: Market Rent Avg | D28: =Weighted_Avg_Rent -> 2702.5
C29: Affordable Rent Avg | D29: =Incentive_Weighted_Avg_Rent -> 1557.2875
C30: Monthly Rent Gap | D30: =Affordable_Rent_Avg-Market_Rent_Avg -> -1145.2125
C33: Gap Financing | D33: No | E33: <- SELECT | F33: Approval Timeline | G33: 0 | H33: <- ENTER
D34: Yes/No | G34: months reduced
C35: Units Abated | D35: Affordable Units | E35: <- SELECT
C36: Per Unit Amount | D36: 0 | E36: <- ENTER
C37: Loan Rate | D37: 0 | E37: <- ENTER
C40: Land Provision | D40: No | E40: <- SELECT | F40: Forgivable Loan | G40: No | H40: <- SELECT
D41: Yes/No | G41: Yes/No
D42: 0 | E42: <- ENTER | F42: Amount | G42: 0 | H42: <- ENTER
D43: reduction
C46: PROJECT COSTS SUMMARY
D48: Without Incentives | G48: With Incentives
C49: Pre-Development Costs | D49: =Total_Units*Soft_Cost_per_unit -> 8841339 | F49: Pre-Development Costs | G49: =Total_Units*Incentive_Soft_Cost_per_unit -> 8841339
C50: Construction Costs | D50: =Total_Units*Hard_Cost_per_unit -> 45340200 | F50: Construction Costs | G50: =Total_Units*Incentive_Hard_Cost_per_unit-IF(Forgivable_Loan="Yes",Forgivable_Loan_Amt,0) -> 45340200
C51: Land Costs | D51: =Total_Units*LandCost -> 2160000 | F51: Land Costs | G51: =Total_Units*Incentive_Per_Door_Land_Cost -> 2160000
C52: Total Project Costs | D52: =(SUM(D49:D51)) -> 56341539 | F52: Total Project Costs | G52: =(SUM(G49:G51)) -> 56341539
C53: Financing & Sale Costs | D53: =D67*D103+D57*0.03 -> 2411058.366 | F53: Financing & Sale Costs | G53: =D67*G103+G57*0.03 -> 2411058.366
C55: Per Unit Total Development Cost | D55: =D52/Total_Units -> 417344.7333 | F55: Per Unit Total Development Cost | G55: =G52/Total_Units -> 417344.7333
C57: Price at Time of Sale | D57: =_xlfn.XLOOKUP(Month_of_Sale-1,C136:C496,F136:F496)*12/Exit_Cap_Rate -> 70602745.44 | F57: Price at Time of Sale | G57: =_xlfn.XLOOKUP(Month_of_Sale-1,C501:C861,F501:F861)*12/Exit_Cap_Rate -> 70602745.44
C59: MODEL INPUTS & CALCULATIONS | N59: Warning: cells below this point are not reset by the 'Reset to Default' button.
C61: LOAN & OPERATING INPUTS | G61: (Please make any changes on 'Financials' tab instead of here)
C63: Construction Timeline (months) | D63: =_xlfn.XLOOKUP(Building_Type,OtherAssumptions!B11:B16,OtherAssumptions!C11:C16) -> 18 | F63: PreDev Timeline (months) | G63: =_xlfn.XLOOKUP(Building_Type,OtherAssumptions!B21:B26,_xlfn.XLOOKUP(Price_Land_Context,OtherAssumptions!C20:G20,OtherAssumptions!C21:G26)) -> 16
C64: Loan-to-Value | D64: =Financials!C5 -> 0.65 | F64: Pre-Dev Equity | G64: 1
C65: Construction Loan Rate | D65: =Financials!C6 -> 0.0575 | F65: Predev Loan Rate | G65: 0.1
C66: Construction Loan Timeframe | D66: =Financials!C7 -> 360 | F66: Cap Rate | G66: =Financials!C12 -> 0.0475
C67: Origination Fees | D67: =Financials!C8 -> 0.008 | F67: Exit Cap Rate | G67: =Financials!C13 -> 0.055
C68: Month of Sale (post-occupancy) | D68: =Financials!C9 -> 180 | F68: Pre-Dev. Prop. Tax | G68: =0.0098*D51 -> 21168
C70: UNIT CHARACTERISTICS | I70: (Please make any changes on 'Revenues' tab instead of here)
D72: MARKET RATE HOUSING | G72: AFFORDABLE HOUSING
C73: Unit Type | D73: Assumed Rent | E73: Unit Mix | G73: Unit Type | H73: Affordable Rent AMI 1 | I73: Affordable Rent AMI 2 | J73: Affordable Rent AMI 3 | K73: Unit Mix
C74: Studio | D74: =_xlfn.XLOOKUP(Building_Type,Revenues!B$5:B$10,Revenues!C$5:C$10)*_xlfn.XLOOKUP(Building_Type,Revenues!B13:B18,_xlfn.XLOOKUP(Price_Land_Context,Revenues!C12:G12,Revenues!C13:G18),0) -> 1930 | E74: =_xlfn.XLOOKUP(Building_Type,OtherAssumptions!B$42:B$47,OtherAssumptions!C$42:C$47) -> 0.15 | G74: Studio | H74: =_xlfn.XLOOKUP(G$8,Revenues!$B$23:$B$27,Revenues!$C$23:$C$27) -> 1322.25 | I74: =_xlfn.XLOOKUP(G$10,Revenues!$B$23:$B$27,Revenues!$C$23:$C$27) -> 1762.5 | J74: =_xlfn.XLOOKUP(G$12,Revenues!$B$23:$B$27,Revenues!$C$23:$C$27) -> 2203 | K74: =E74 -> 0.15
C75: 1 Bed | D75: =_xlfn.XLOOKUP(Building_Type,Revenues!B$5:B$10,Revenues!D$5:D$10)*_xlfn.XLOOKUP(Building_Type,Revenues!B13:B18,_xlfn.XLOOKUP(Price_Land_Context,Revenues!C12:G12,Revenues!C13:G18),0) -> 2310 | E75: =_xlfn.XLOOKUP(Building_Type,OtherAssumptions!B$42:B$47,OtherAssumptions!D$42:D$47) -> 0.5 | G75: 1 Bed | H75: =_xlfn.XLOOKUP(G$8,Revenues!$B$23:$B$27,Revenues!$D$23:$D$27) -> 1509.5 | I75: =_xlfn.XLOOKUP(G$10,Revenues!$B$23:$B$27,Revenues!$D$23:$D$27) -> 2013.75 | J75: =_xlfn.XLOOKUP(G$12,Revenues!$B$23:$B$27,Revenues!$D$23:$D$27) -> 2517 | K75: =E75 -> 0.5
C76: 2 Bed | D76: =_xlfn.XLOOKUP(Building_Type,Revenues!B$5:B$10,Revenues!E$5:E$10)*_xlfn.XLOOKUP(Building_Type,Revenues!B13:B18,_xlfn.XLOOKUP(Price_Land_Context,Revenues!C12:G12,Revenues!C13:G18),0) -> 3410 | E76: =_xlfn.XLOOKUP(Building_Type,OtherAssumptions!B$42:B$47,OtherAssumptions!E$42:E$47) -> 0.3 | G76: 2 Bed | H76: =_xlfn.XLOOKUP(G$8,Revenues!$B$23:$B$27,Revenues!$E$23:$E$27) -> 1699.5 | I76: =_xlfn.XLOOKUP(G$10,Revenues!$B$23:$B$27,Revenues!$E$23:$E$27) -> 2265 | J76: =_xlfn.XLOOKUP(G$12,Revenues!$B$23:$B$27,Revenues!$E$23:$E$27) -> 2831 | K76: =E76 -> 0.3
C77: 3+ Bed | D77: =_xlfn.XLOOKUP(Building_Type,Revenues!B$5:B$10,Revenues!F$5:F$10)*_xlfn.XLOOKUP(Building_Type,Revenues!B13:B18,_xlfn.XLOOKUP(Price_Land_Context,Revenues!C12:G12,Revenues!C13:G18),0) -> 4700 | E77: =_xlfn.XLOOKUP(Building_Type,OtherAssumptions!B$42:B$47,OtherAssumptions!F$42:F$47) -> 0.05 | G77: 3+ Bed | H77: =_xlfn.XLOOKUP(G$8,Revenues!$B$23:$B$27,Revenues!$F$23:$F$27) -> 1887 | I77: =_xlfn.XLOOKUP(G$10,Revenues!$B$23:$B$27,Revenues!$F$23:$F$27) -> 2516.25 | J77: =_xlfn.XLOOKUP(G$12,Revenues!$B$23:$B$27,Revenues!$F$23:$F$27) -> 3145 | K77: =E77 -> 0.05
C79: Average Rent Calculations | G79: Average Rent Calculations
C80: Weighted Average Rent | D80: =SUMPRODUCT(D74:D77,E74:E77)*_xlfn.XLOOKUP(D18,OtherAssumptions!C63:E63,OtherAssumptions!C68:E68) -> 2702.5 | G80: Weighted Average Rent | H80: =IFERROR(SUMPRODUCT(H74:H77,K74:K77)*(G9/SUM(G9,G11,G13))+SUMPRODUCT(I74:I77,K74:K77)*(G11/SUM(G9,G11,G13))+SUMPRODUCT(J74:J77,K74:K77)*(G13/SUM(G9,G11,G13)),0) -> 1557.2875
C83: DEVELOPMENT COST ESTIMATES | I83: (Please make any changes on the three 'Cost' tabs or the 'Financials' tab)
D85: Without Incentives | G85: With Incentives
C86: HARD COSTS PER UNIT | F86: HARD COSTS PER UNIT
C87: Residential Space Cost per unit | D87: =_xlfn.XLOOKUP(Building_Type,HardCosts!B5:B10,HardCosts!D5:D10)+((D10-_xlfn.XLOOKUP(Building_Type,HardCosts!B5:B10,HardCosts!C5:C10))*_xlfn.XLOOKUP(Building_Type,HardCosts!B5:B10,HardCosts!E5:E10)) -> 300000 | F87: Residential Space Cost per unit | G87: =_xlfn.XLOOKUP(Building_Type,HardCosts!B5:B10,HardCosts!D5:D10)+((D10-_xlfn.XLOOKUP(Building_Type,HardCosts!B5:B10,HardCosts!C5:C10))*_xlfn.XLOOKUP(Building_Type,HardCosts!B5:B10,HardCosts!E5:E10)) -> 300000
C88: Parking Cost per Unit | D88: =_xlfn.XLOOKUP(Parking_AB,HardCosts!B15:B17,HardCosts!C15:C17)*FeasibilityEvaluator!D13 -> 29400 | F88: Parking Cost per Unit | G88: =_xlfn.XLOOKUP(Parking_AB,HardCosts!B15:B17,HardCosts!C15:C17)*FeasibilityEvaluator!D13 -> 29400
C89: Site Costs per Unit | D89: =HardCosts!C41*43560*_xlfn.XLOOKUP(Building_Type,OtherAssumptions!B31:B36,_xlfn.XLOOKUP(Price_Land_Context,OtherAssumptions!C30:G30,OtherAssumptions!C31:G36)/Total_Units) -> 6453.333333 | F89: Site Costs per Unit | G89: =HardCosts!C41*43560*_xlfn.XLOOKUP(Building_Type,OtherAssumptions!B31:B36,_xlfn.XLOOKUP(Price_Land_Context,OtherAssumptions!C30:G30,OtherAssumptions!C31:G36)/Total_Units) -> 6453.333333
C90: Hard Cost Contingency | D90: =HardCosts!B46*SUM(D87:D89) -> 0 | F90: Hard Cost Contingency | G90: =HardCosts!B46*SUM(G87:G89) -> 0
C91: Subtotal | D91: =SUM(D87:D90)*_xlfn.XLOOKUP(C16,OtherAssumptions!B64:B68,_xlfn.XLOOKUP(FeasibilityEvaluator!D16,OtherAssumptions!C63:E63,OtherAssumptions!C64:E68)) -> 335853.3333 | F91: Subtotal | G91: =SUM(G87:G90)*_xlfn.XLOOKUP(C16,OtherAssumptions!B64:B68,_xlfn.XLOOKUP(FeasibilityEvaluator!D16,OtherAssumptions!C63:E63,OtherAssumptions!C64:E68)) -> 335853.3333
C92: SOFT COSTS PER UNIT | F92: SOFT COSTS PER UNIT
C93: Consulting Soft Costs per unit | D93: =MAX(D91*SoftCosts!C5,D91*SoftCosts!C6) -> 50378 | F93: Consulting Soft Costs per unit | G93: =MAX(G91*(SoftCosts!C5-(Expedited_Process*0.0025)),G91*SoftCosts!C6) -> 50378
C94: Municipal Soft Costs per unit | D94: =D91*SoftCosts!B11 -> 15113.4 | F94: Municipal Soft Costs per unit | G94: =D94 -> 15113.4 | H94: Cost Savings
C95: Subtotal | D95: =SUM(D93:D94) -> 65491.4 | F95: Subtotal | G95: =SUM(G93:G94) -> 65491.4
D96: =Soft_Cost_per_unit/PreDev_Timeline -> 4093.2125 | G96: =Incentive_Soft_Cost_per_unit/(PreDev_Timeline-Expedited_Process) -> 4093.2125
C97: LAND COSTS PER UNIT | F97: LAND COSTS PER UNIT
C98: Land Cost per Unit | D98: =_xlfn.XLOOKUP(Building_Type,LandCosts!B5:B10,_xlfn.XLOOKUP(Price_Land_Context,LandCosts!C4:G4,LandCosts!C5:G10))*_xlfn.XLOOKUP(C17,OtherAssumptions!B64:B68,_xlfn.XLOOKUP(FeasibilityEvaluator!D17,OtherAssumptions!C63:E63,OtherAssumptions!C64:E68)) -> 16000 | F98: Land Cost per Unit | G98: =LandCost*IF(D40="Yes",1-D42,1) -> 16000
C100: FINANCING COSTS (TOTAL ) | F100: FINANCING COSTS (TOTAL )
C101: Predev Interest | D101: =-IPMT(G65/12,1,G63,(D95*(1-G64)*Total_Units)) -> 0 | F101: Predev Interest | G101: =-IPMT(G65/12,1,G63-Expedited_Process,(G95*(1-G64)*Total_Units)) -> 0
C102: Equity Amount | D102: =D52*(1-$D64) -> 19719538.65 | F102: Equity Amount | G102: =G52*(1-$D64) -> 19719538.65
C103: Primary Loan Amount | D103: =D52*$D64 -> 36622000.35 | F103: Primary Loan Amount | G103: =G52*$D64-G104-IF(G40="Yes",G42,0) -> 36622000.35
C104: Gap Loan Amount | D104: 0 | F104: Gap Loan Amount | G104: =IF(AND(D33="Yes",D35="Affordable Units"),D36*G14,IF(AND(D33="Yes",D35="All Units"),D36*Total_Units,0)) -> 0
C105: Monthly Construction Payments | D105: =-PMT($D65/12,$D66,D103)+(D102/D66) -> 268492.5498 | F105: Monthly Construction Payments | G105: =-PMT($D65/12,$D66,G103)-PMT(D37/12,$D66,G104)+(G102/D66) -> 268492.5498
C106: Sales Commissions | D106: 0.03 | F106: Sales Commissions | G106: 0.03
C108: REVENUE ESTIMATES | G108: (Please make any changes on 'Other Assumptions' tab instead of here)
C110: NET OPERATING INCOME PER UNIT
D111: Without Incentive | G111: With Incentive
D112: Market Rate Units | G112: Market Rate Units
C113: Occupancy Rate | D113: =OtherAssumptions!C82 -> 0.97 | F113: Occupancy Rate | G113: =OtherAssumptions!C82 -> 0.97
C114: Avg Rent | D114: =Weighted_Avg_Rent -> 2702.5 | F114: Avg Rent | G114: =Weighted_Avg_Rent -> 2702.5
C115: Property Tax | D115: =(OtherAssumptions!$B5/100*D114*0.65*12/$G66)/12 -> 362.4194737 | F115: Property Tax | G115: =IF(AND(G22="Yes",G25="All Units"),MAX(G68/Total_Units/12,D115*(1-G24)),IF(AND(D22="Yes",D25="All Units"),D115+D30*D24,D115)) -> 362.4194737
C116: Other Expenses | D116: =D114/5.5 -> 491.3636364 | F116: Other Expenses | G116: =G114/5.5 -> 491.3636364
C117: Net Operating Income | D117: =D114*D113-D115-D116*D113 -> 1782.382799 | F117: Net Operating Income | G117: =G114*G113-G115-G116*G113 -> 1782.382799
C118: Net Operating Income (%) | D118: =D117/D114 -> 0.6595311005 | F118: Net Operating Income (%) | G118: =G117/G114 -> 0.6595311005
D119: Affordable Units | G119: Affordable Units
C120: Occupancy Rate | D120: =OtherAssumptions!C83 -> 0.97 | F120: Occupancy Rate | G120: =OtherAssumptions!C83 -> 0.97
C121: Avg Rent | D121: =H80 -> 1557.2875 | F121: Avg Rent | G121: =H80 -> 1557.2875
C122: Property Tax | D122: =D115 -> 362.4194737 | F122: Property Tax | G122: =IF(D22="Yes",D122+D30*D24,IF(G22="Yes",MAX(G68/Total_Units/12,(1-G24)*D122),D122)) -> 362.4194737
C123: Other Expenses | D123: =D116*1.05 -> 515.9318182 | F123: Other Expenses | G123: =G116*1.05 -> 515.9318182
C124: Net Operating Income | D124: =D121*D120-D122-D123*D120 -> 647.6955377 | F124: Net Operating Income | G124: =G121*G120-G122-G123*G120 -> 647.6955377
C125: Net Operating Income (%) | D125: =IFERROR(D124/D121,0) -> 0.4159126286 | F125: Net Operating Income (%) | G125: =IFERROR(G124/G121,0) -> 0.4159126286
C128: Weighted NOI | D128: =((D117*(Total_Units-Units_Affordable))+(D124*Units_Affordable))/Total_Units -> 1668.914073 | F128: Weighted NOI | G128: =((G117*(Total_Units-Units_Affordable))+(G124*Units_Affordable))/Total_Units -> 1668.914073
C131: IRR CALCULATIONS | K131: (Please do not make any changes other than cells in dark yellow)
C133: Rent Escalation Rate | D133: 0.0025
C135: Month | D135: Dev Costs | E135: PreDev Costs | F135: Operating Revenue | G135: Property Sale | H135: Principal Paid | I135: Totals | J135: Constr. Cost Months | K135: Predev Months
C136: 0 | D136: =-Loan_Payment*J136 -> 0 | E136: =-LandCost*FeasibilityEvaluator!Total_Units-Predev_Interest*K136 -> -2160000 | F136: 0 | G136: =IF(C136=SUM(Month_of_Sale,PreDev_Timeline,Construction_Timeline),Rental_Sale_Price*(1-D$106)-SUM(H$136:H136)-SUM(D$102:D$103),0) -> 0 | H136: =IF(D136=0,0,PPMT(D$65/12,C136+1-PreDev_Timeline,D$66,D$103)) -> 0 | I136: =SUM(D136:G136) -> -2160000 | J136: 0 | K136: =IF(C136=0,0,IF(C136<=Expedited_Process,1,0)) -> 0 | L136: 2026-01-01
C137: 1 | D137: =-Loan_Payment*J137-IF(F137>0,Loan_Payment) -> 0 | E137: =-Monthly_soft_cost_per_unit*Total_Units*K137-Predev_Interest*K137 -> -552583.6875 | F137: =IF(AND(C137<SUM(Month_of_Sale,Construction_Timeline,PreDev_Timeline),SUM(J137:K137)=0),Weighted_NOI*Total_Units*(1+Rent_Escalation_Rate)^(C137-SUM(PreDev_Timeline,Construction_Timeline)),0) -> 0 | G137: =IF(C137=SUM(Month_of_Sale,PreDev_Timeline,Construction_Timeline),Rental_Sale_Price*(1-D$106)-SUM(H$136:H137)-SUM(D$102:D$103),0) -> 0 | H137: 0 | I137: -552583.6875 | J137: =IF(K137=1,0,IF(SUM(J$136:J136)>=Construction_Timeline,0,1)) -> 0 | K137: =IF(C137<=PreDev_Timeline,1,0) -> 1 | L137: =EDATE(L136,1) -> 2026-02-01
C138: 2 | D138: 0 | E138: -552583.6875 | F138: 0 | G138: =IF(C138=SUM(Month_of_Sale,PreDev_Timeline,Construction_Timeline),Rental_Sale_Price*(1-D$106)-SUM(H$136:H138)-SUM(D$102:D$103),0) -> 0 | H138: 0 | I138: -552583.6875 | J138: =IF(K138=1,0,IF(SUM(J$136:J137)>=Construction_Timeline,0,1)) -> 0 | K138: 1 | L138: =EDATE(L137,1) -> 2026-03-01
C139: 3 | D139: 0 | E139: -552583.6875 | F139: 0 | G139: =IF(C139=SUM(Month_of_Sale,PreDev_Timeline,Construction_Timeline),Rental_Sale_Price*(1-D$106)-SUM(H$136:H139)-SUM(D$102:D$103),0) -> 0 | H139: 0 | I139: -552583.6875 | J139: =IF(K139=1,0,IF(SUM(J$136:J138)>=Construction_Timeline,0,1)) -> 0 | K139: 1 | L139: 2026-04-01
C140: 4 | D140: 0 | E140: -552583.6875 | F140: 0 | G140: =IF(C140=SUM(Month_of_Sale,PreDev_Timeline,Construction_Timeline),Rental_Sale_Price*(1-D$106)-SUM(H$136:H140)-SUM(D$102:D$103),0) -> 0 | H140: 0 | I140: -552583.6875 | J140: =IF(K140=1,0,IF(SUM(J$136:J139)>=Construction_Timeline,0,1)) -> 0 | K140: 1 | L140: 2026-05-01
C141: 5 | D141: 0 | E141: -552583.6875 | F141: 0 | G141: =IF(C141=SUM(Month_of_Sale,PreDev_Timeline,Construction_Timeline),Rental_Sale_Price*(1-D$106)-SUM(H$136:H141)-SUM(D$102:D$103),0) -> 0 | H141: 0 | I141: -552583.6875 | J141: =IF(K141=1,0,IF(SUM(J$136:J140)>=Construction_Timeline,0,1)) -> 0 | K141: 1 | L141: 2026-06-01
C142: 6 | D142: 0 | E142: -552583.6875 | F142: 0 | G142: =IF(C142=SUM(Month_of_Sale,PreDev_Timeline,Construction_Timeline),Rental_Sale_Price*(1-D$106)-SUM(H$136:H142)-SUM(D$102:D$103),0) -> 0 | H142: 0 | I142: -552583.6875 | J142: =IF(K142=1,0,IF(SUM(J$136:J141)>=Construction_Timeline,0,1)) -> 0 | K142: 1 | L142: 2026-07-01
C143: 7 | D143: 0 | E143: -552583.6875 | F143: 0 | G143: =IF(C143=SUM(Month_of_Sale,PreDev_Timeline,Construction_Timeline),Rental_Sale_Price*(1-D$106)-SUM(H$136:H143)-SUM(D$102:D$103),0) -> 0 | H143: 0 | I143: -552583.6875 | J143: =IF(K143=1,0,IF(SUM(J$136:J142)>=Construction_Timeline,0,1)) -> 0 | K143: 1 | L143: 2026-08-01
C144: 8 | D144: 0 | E144: -552583.6875 | F144: 0 | G144: =IF(C144=SUM(Month_of_Sale,PreDev_Timeline,Construction_Timeline),Rental_Sale_Price*(1-D$106)-SUM(H$136:H144)-SUM(D$102:D$103),0) -> 0 | H144: 0 | I144: -552583.6875 | J144: =IF(K144=1,0,IF(SUM(J$136:J143)>=Construction_Timeline,0,1)) -> 0 | K144: 1 | L144: 2026-09-01
C145: 9 | D145: 0 | E145: -552583.6875 | F145: 0 | G145: =IF(C145=SUM(Month_of_Sale,PreDev_Timeline,Construction_Timeline),Rental_Sale_Price*(1-D$106)-SUM(H$136:H145)-SUM(D$102:D$103),0) -> 0 | H145: 0 | I145: -552583.6875 | J145: =IF(K145=1,0,IF(SUM(J$136:J144)>=Construction_Timeline,0,1)) -> 0 | K145: 1 | L145: 2026-10-01
C146: 10 | D146: 0 | E146: -552583.6875 | F146: 0 | G146: =IF(C146=SUM(Month_of_Sale,PreDev_Timeline,Construction_Timeline),Rental_Sale_Price*(1-D$106)-SUM(H$136:H146)-SUM(D$102:D$103),0) -> 0 | H146: 0 | I146: -552583.6875 | J146: =IF(K146=1,0,IF(SUM(J$136:J145)>=Construction_Timeline,0,1)) -> 0 | K146: 1 | L146: 2026-11-01
C147: 11 | D147: 0 | E147: -552583.6875 | F147: 0 | G147: =IF(C147=SUM(Month_of_Sale,PreDev_Timeline,Construction_Timeline),Rental_Sale_Price*(1-D$106)-SUM(H$136:H147)-SUM(D$102:D$103),0) -> 0 | H147: 0 | I147: -552583.6875 | J147: =IF(K147=1,0,IF(SUM(J$136:J146)>=Construction_Timeline,0,1)) -> 0 | K147: 1 | L147: 2026-12-01
C148: 12 | D148: 0 | E148: -552583.6875 | F148: 0 | G148: =IF(C148=SUM(Month_of_Sale,PreDev_Timeline,Construction_Timeline),Rental_Sale_Price*(1-D$106)-SUM(H$136:H148)-SUM(D$102:D$103),0) -> 0 | H148: 0 | I148: -552583.6875 | J148: =IF(K148=1,0,IF(SUM(J$136:J147)>=Construction_Timeline,0,1)) -> 0 | K148: 1 | L148: 2027-01-01
C149: 13 | D149: 0 | E149: -552583.6875 | F149: 0 | G149: =IF(C149=SUM(Month_of_Sale,PreDev_Timeline,Construction_Timeline),Rental_Sale_Price*(1-D$106)-SUM(H$136:H149)-SUM(D$102:D$103),0) -> 0 | H149: 0 | I149: -552583.6875 | J149: =IF(K149=1,0,IF(SUM(J$136:J148)>=Construction_Timeline,0,1)) -> 0 | K149: 1 | L149: 2027-02-01
C150: 14 | D150: 0 | E150: -552583.6875 | F150: 0 | G150: =IF(C150=SUM(Month_of_Sale,PreDev_Timeline,Construction_Timeline),Rental_Sale_Price*(1-D$106)-SUM(H$136:H150)-SUM(D$102:D$103),0) -> 0 | H150: 0 | I150: -552583.6875 | J150: =IF(K150=1,0,IF(SUM(J$136:J149)>=Construction_Timeline,0,1)) -> 0 | K150: 1 | L150: 2027-03-01
C151: 15 | D151: 0 | E151: -552583.6875 | F151: 0 | G151: =IF(C151=SUM(Month_of_Sale,PreDev_Timeline,Construction_Timeline),Rental_Sale_Price*(1-D$106)-SUM(H$136:H151)-SUM(D$102:D$103),0) -> 0 | H151: 0 | I151: -552583.6875 | J151: =IF(K151=1,0,IF(SUM(J$136:J150)>=Construction_Timeline,0,1)) -> 0 | K151: 1 | L151: 2027-04-01
C152: 16 | D152: 0 | E152: -552583.6875 | F152: 0 | G152: =IF(C152=SUM(Month_of_Sale,PreDev_Timeline,Construction_Timeline),Rental_Sale_Price*(1-D$106)-SUM(H$136:H152)-SUM(D$102:D$103),0) -> 0 | H152: 0 | I152: -552583.6875 | J152: =IF(K152=1,0,IF(SUM(J$136:J151)>=Construction_Timeline,0,1)) -> 0 | K152: 1 | L152: 2027-05-01
C153: 17 | D153: -268492.5498 | E153: 0 | F153: 0 | G153: =IF(C153=SUM(Month_of_Sale,PreDev_Timeline,Construction_Timeline),Rental_Sale_Price*(1-D$106)-SUM(H$136:H153)-SUM(D$102:D$103),0) -> 0 | H153: -38418.8476 | I153: -268492.5498 | J153: =IF(K153=1,0,IF(SUM(J$136:J152)>=Construction_Timeline,0,1)) -> 1 | K153: 0 | L153: 2027-06-01
C154: 18 | D154: -268492.5498 | E154: 0 | F154: 0 | G154: =IF(C154=SUM(Month_of_Sale,PreDev_Timeline,Construction_Timeline),Rental_Sale_Price*(1-D$106)-SUM(H$136:H154)-SUM(D$102:D$103),0) -> 0 | H154: -38602.93792 | I154: -268492.5498 | J154: =IF(K154=1,0,IF(SUM(J$136:J153)>=Construction_Timeline,0,1)) -> 1 | K154: 0 | L154: 2027-07-01
C155: 19 | D155: -268492.5498 | E155: 0 | F155: 0 | G155: =IF(C155=SUM(Month_of_Sale,PreDev_Timeline,Construction_Timeline),Rental_Sale_Price*(1-D$106)-SUM(H$136:H155)-SUM(D$102:D$103),0) -> 0 | H155: -38787.91033 | I155: -268492.5498 | J155: =IF(K155=1,0,IF(SUM(J$136:J154)>=Construction_Timeline,0,1)) -> 1 | K155: 0 | L155: 2027-08-01
C156: 20 | D156: -268492.5498 | E156: 0 | F156: 0 | G156: =IF(C156=SUM(Month_of_Sale,PreDev_Timeline,Construction_Timeline),Rental_Sale_Price*(1-D$106)-SUM(H$136:H156)-SUM(D$102:D$103),0) -> 0 | H156: -38973.76906 | I156: -268492.5498 | J156: =IF(K156=1,0,IF(SUM(J$136:J155)>=Construction_Timeline,0,1)) -> 1 | K156: 0 | L156: 2027-09-01
C157: 21 | D157: -268492.5498 | E157: 0 | F157: 0 | G157: =IF(C157=SUM(Month_of_Sale,PreDev_Timeline,Construction_Timeline),Rental_Sale_Price*(1-D$106)-SUM(H$136:H157)-SUM(D$102:D$103),0) -> 0 | H157: -39160.51837 | I157: -268492.5498 | J157: =IF(K157=1,0,IF(SUM(J$136:J156)>=Construction_Timeline,0,1)) -> 1 | K157: 0 | L157: 2027-10-01
C158: 22 | D158: -268492.5498 | E158: 0 | F158: 0 | G158: =IF(C158=SUM(Month_of_Sale,PreDev_Timeline,Construction_Timeline),Rental_Sale_Price*(1-D$106)-SUM(H$136:H158)-SUM(D$102:D$103),0) -> 0 | H158: -39348.16252 | I158: -268492.5498 | J158: =IF(K158=1,0,IF(SUM(J$136:J157)>=Construction_Timeline,0,1)) -> 1 | K158: 0 | L158: 2027-11-01
C159: 23 | D159: -268492.5498 | E159: 0 | F159: 0 | G159: =IF(C159=SUM(Month_of_Sale,PreDev_Timeline,Construction_Timeline),Rental_Sale_Price*(1-D$106)-SUM(H$136:H159)-SUM(D$102:D$103),0) -> 0 | H159: -39536.7058 | I159: -268492.5498 | J159: =IF(K159=1,0,IF(SUM(J$136:J158)>=Construction_Timeline,0,1)) -> 1 | K159: 0 | L159: 2027-12-01
C160: 24 | D160: -268492.5498 | E160: 0 | F160: 0 | G160: =IF(C160=SUM(Month_of_Sale,PreDev_Timeline,Construction_Timeline),Rental_Sale_Price*(1-D$106)-SUM(H$136:H160)-SUM(D$102:D$103),0) -> 0 | H160: -39726.15252 | I160: -268492.5498 | J160: =IF(K160=1,0,IF(SUM(J$136:J159)>=Construction_Timeline,0,1)) -> 1 | K160: 0 | L160: 2028-01-01
C161: 25 | D161: -268492.5498 | E161: 0 | F161: 0 | G161: =IF(C161=SUM(Month_of_Sale,PreDev_Timeline,Construction_Timeline),Rental_Sale_Price*(1-D$106)-SUM(H$136:H161)-SUM(D$102:D$103),0) -> 0 | H161: -39916.507 | I161: -268492.5498 | J161: =IF(K161=1,0,IF(SUM(J$136:J160)>=Construction_Timeline,0,1)) -> 1 | K161: 0 | L161: 2028-02-01
C162: 26 | D162: -268492.5498 | E162: 0 | F162: 0 | G162: =IF(C162=SUM(Month_of_Sale,PreDev_Timeline,Construction_Timeline),Rental_Sale_Price*(1-D$106)-SUM(H$136:H162)-SUM(D$102:D$103),0) -> 0 | H162: -40107.77359 | I162: -268492.5498 | J162: =IF(K162=1,0,IF(SUM(J$136:J161)>=Construction_Timeline,0,1)) -> 1 | K162: 0 | L162: 2028-03-01
C163: 27 | D163: -268492.5498 | E163: 0 | F163: 0 | G163: =IF(C163=SUM(Month_of_Sale,PreDev_Timeline,Construction_Timeline),Rental_Sale_Price*(1-D$106)-SUM(H$136:H163)-SUM(D$102:D$103),0) -> 0 | H163: -40299.95668 | I163: -268492.5498 | J163: =IF(K163=1,0,IF(SUM(J$136:J162)>=Construction_Timeline,0,1)) -> 1 | K163: 0 | L163: 2028-04-01
C164: 28 | D164: -268492.5498 | E164: 0 | F164: 0 | G164: =IF(C164=SUM(Month_of_Sale,PreDev_Timeline,Construction_Timeline),Rental_Sale_Price*(1-D$106)-SUM(H$136:H164)-SUM(D$102:D$103),0) -> 0 | H164: -40493.06064 | I164: -268492.5498 | J164: =IF(K164=1,0,IF(SUM(J$136:J163)>=Construction_Timeline,0,1)) -> 1 | K164: 0 | L164: 2028-05-01
C165: 29 | D165: -268492.5498 | E165: 0 | F165: 0 | G165: =IF(C165=SUM(Month_of_Sale,PreDev_Timeline,Construction_Timeline),Rental_Sale_Price*(1-D$106)-SUM(H$136:H165)-SUM(D$102:D$103),0) -> 0 | H165: -40687.08988 | I165: -268492.5498 | J165: =IF(K165=1,0,IF(SUM(J$136:J164)>=Construction_Timeline,0,1)) -> 1 | K165: 0 | L165: 2028-06-01
C166: 30 | D166: -268492.5498 | E166: 0 | F166: 0 | G166: =IF(C166=SUM(Month_of_Sale,PreDev_Timeline,Construction_Timeline),Rental_Sale_Price*(1-D$106)-SUM(H$136:H166)-SUM(D$102:D$103),0) -> 0 | H166: -40882.04886 | I166: -268492.5498 | J166: =IF(K166=1,0,IF(SUM(J$136:J165)>=Construction_Timeline,0,1)) -> 1 | K166: 0 | L166: 2028-07-01
C167: 31 | D167: -268492.5498 | E167: 0 | F167: 0 | G167: =IF(C167=SUM(Month_of_Sale,PreDev_Timeline,Construction_Timeline),Rental_Sale_Price*(1-D$106)-SUM(H$136:H167)-SUM(D$102:D$103),0) -> 0 | H167: -41077.94201 | I167: -268492.5498 | J167: =IF(K167=1,0,IF(SUM(J$136:J166)>=Construction_Timeline,0,1)) -> 1 | K167: 0 | L167: 2028-08-01
C168: 32 | D168: -268492.5498 | E168: 0 | F168: 0 | G168: =IF(C168=SUM(Month_of_Sale,PreDev_Timeline,Construction_Timeline),Rental_Sale_Price*(1-D$106)-SUM(H$136:H168)-SUM(D$102:D$103),0) -> 0 | H168: -41274.77381 | I168: -268492.5498 | J168: =IF(K168=1,0,IF(SUM(J$136:J167)>=Construction_Timeline,0,1)) -> 1 | K168: 0 | L168: 2028-09-01
C169: 33 | D169: -268492.5498 | E169: 0 | F169: 0 | G169: =IF(C169=SUM(Month_of_Sale,PreDev_Timeline,Construction_Timeline),Rental_Sale_Price*(1-D$106)-SUM(H$136:H169)-SUM(D$102:D$103),0) -> 0 | H169: -41472.54877 | I169: -268492.5498 | J169: =IF(K169=1,0,IF(SUM(J$136:J168)>=Construction_Timeline,0,1)) -> 1 | K169: 0 | L169: 2028-10-01
C170: 34 | D170: -268492.5498 | E170: 0 | F170: 0 | G170: =IF(C170=SUM(Month_of_Sale,PreDev_Timeline,Construction_Timeline),Rental_Sale_Price*(1-D$106)-SUM(H$136:H170)-SUM(D$102:D$103),0) -> 0 | H170: -41671.2714 | I170: -268492.5498 | J170: =IF(K170=1,0,IF(SUM(J$136:J169)>=Construction_Timeline,0,1)) -> 1 | K170: 0 | L170: 2028-11-01
C171: 35 | D171: -268492.5498 | E171: 0 | F171: 225866.6583 | G171: =IF(C171=SUM(Month_of_Sale,PreDev_Timeline,Construction_Timeline),Rental_Sale_Price*(1-D$106)-SUM(H$136:H171)-SUM(D$102:D$103),0) -> 0 | H171: -41870.94624 | I171: -42625.89144 | J171: =IF(K171=1,0,IF(SUM(J$136:J170)>=Construction_Timeline,0,1)) -> 0 | K171: 0 | L171: 2028-12-01
C172: 36 | D172: -268492.5498 | E172: 0 | F172: 226431.325 | G172: =IF(C172=SUM(Month_of_Sale,PreDev_Timeline,Construction_Timeline),Rental_Sale_Price*(1-D$106)-SUM(H$136:H172)-SUM(D$102:D$103),0) -> 0 | H172: -42071.57786 | I172: -42061.22479 | J172: =IF(K172=1,0,IF(SUM(J$136:J171)>=Construction_Timeline,0,1)) -> 0 | K172: 0 | L172: 2029-01-01
C173: 37 | D173: -268492.5498 | E173: 0 | F173: 226997.4033 | G173: =IF(C173=SUM(Month_of_Sale,PreDev_Timeline,Construction_Timeline),Rental_Sale_Price*(1-D$106)-SUM(H$136:H173)-SUM(D$102:D$103),0) -> 0 | H173: -42273.17084 | I173: -41495.14648 | J173: =IF(K173=1,0,IF(SUM(J$136:J172)>=Construction_Timeline,0,1)) -> 0 | K173: 0 | L173: 2029-02-01
C174: 38 | D174: -268492.5498 | E174: 0 | F174: 227564.8968 | G174: =IF(C174=SUM(Month_of_Sale,PreDev_Timeline,Construction_Timeline),Rental_Sale_Price*(1-D$106)-SUM(H$136:H174)-SUM(D$102:D$103),0) -> 0 | H174: -42475.72978 | I174: -40927.65297 | J174: =IF(K174=1,0,IF(SUM(J$136:J173)>=Construction_Timeline,0,1)) -> 0 | K174: 0 | L174: 2029-03-01
C175: 39 | D175: -268492.5498 | E175: 0 | F175: 228133.8091 | G175: =IF(C175=SUM(Month_of_Sale,PreDev_Timeline,Construction_Timeline),Rental_Sale_Price*(1-D$106)-SUM(H$136:H175)-SUM(D$102:D$103),0) -> 0 | H175: -42679.25932 | I175: -40358.74073 | J175: =IF(K175=1,0,IF(SUM(J$136:J174)>=Construction_Timeline,0,1)) -> 0 | K175: 0 | L175: 2029-04-01
C176: 40 | D176: -268492.5498 | E176: 0 | F176: 228704.1436 | G176: =IF(C176=SUM(Month_of_Sale,PreDev_Timeline,Construction_Timeline),Rental_Sale_Price*(1-D$106)-SUM(H$136:H176)-SUM(D$102:D$103),0) -> 0 | H176: -42883.7641 | I176: -39788.40621 | J176: =IF(K176=1,0,IF(SUM(J$136:J175)>=Construction_Timeline,0,1)) -> 0 | K176: 0 | L176: 2029-05-01
C177: 41 | D177: -268492.5498 | E177: 0 | F177: 229275.9039 | G177: =IF(C177=SUM(Month_of_Sale,PreDev_Timeline,Construction_Timeline),Rental_Sale_Price*(1-D$106)-SUM(H$136:H177)-SUM(D$102:D$103),0) -> 0 | H177: -43089.24881 | I177: -39216.64585 | J177: =IF(K177=1,0,IF(SUM(J$136:J176)>=Construction_Timeline,0,1)) -> 0 | K177: 0 | L177: 2029-06-01
C178: 42 | D178: -268492.5498 | E178: 0 | F178: 229849.0937 | G178: =IF(C178=SUM(Month_of_Sale,PreDev_Timeline,Construction_Timeline),Rental_Sale_Price*(1-D$106)-SUM(H$136:H178)-SUM(D$102:D$103),0) -> 0 | H178: -43295.71812 | I178: -38643.45609 | J178: =IF(K178=1,0,IF(SUM(J$136:J177)>=Construction_Timeline,0,1)) -> 0 | K178: 0 | L178: 2029-07-01
C179: 43 | D179: -268492.5498 | E179: 0 | F179: 230423.7164 | G179: =IF(C179=SUM(Month_of_Sale,PreDev_Timeline,Construction_Timeline),Rental_Sale_Price*(1-D$106)-SUM(H$136:H179)-SUM(D$102:D$103),0) -> 0 | H179: -43503.17677 | I179: -38068.83335 | J179: =IF(K179=1,0,IF(SUM(J$136:J178)>=Construction_Timeline,0,1)) -> 0 | K179: 0 | L179: 2029-08-01
C180: 44 | D180: -268492.5498 | E180: 0 | F180: 230999.7757 | G180: =IF(C180=SUM(Month_of_Sale,PreDev_Timeline,Construction_Timeline),Rental_Sale_Price*(1-D$106)-SUM(H$136:H180)-SUM(D$102:D$103),0) -> 0 | H180: -43711.6295 | I180: -37492.77406 | J180: =IF(K180=1,0,IF(SUM(J$136:J179)>=Construction_Timeline,0,1)) -> 0 | K180: 0 | L180: 2029-09-01
C181: 45 | D181: -268492.5498 | E181: 0 | F181: 231577.2752 | G181: =IF(C181=SUM(Month_of_Sale,PreDev_Timeline,Construction_Timeline),Rental_Sale_Price*(1-D$106)-SUM(H$136:H181)-SUM(D$102:D$103),0) -> 0 | H181: -43921.08105 | I181: -36915.27462 | J181: =IF(K181=1,0,IF(SUM(J$136:J180)>=Construction_Timeline,0,1)) -> 0 | K181: 0 | L181: 2029-10-01
C182: 46 | D182: -268492.5498 | E182: 0 | F182: 232156.2183 | G182: =IF(C182=SUM(Month_of_Sale,PreDev_Timeline,Construction_Timeline),Rental_Sale_Price*(1-D$106)-SUM(H$136:H182)-SUM(D$102:D$103),0) -> 0 | H182: -44131.53623 | I182: -36336.33143 | J182: =IF(K182=1,0,IF(SUM(J$136:J181)>=Construction_Timeline,0,1)) -> 0 | K182: 0 | L182: 2029-11-01
C183: 47 | D183: -268492.5498 | E183: 0 | F183: 232736.6089 | G183: =IF(C183=SUM(Month_of_Sale,PreDev_Timeline,Construction_Timeline),Rental_Sale_Price*(1-D$106)-SUM(H$136:H183)-SUM(D$102:D$103),0) -> 0 | H183: -44342.99984 | I183: -35755.94089 | J183: =IF(K183=1,0,IF(SUM(J$136:J182)>=Construction_Timeline,0,1)) -> 0 | K183: 0 | L183: 2029-12-01
C184: 48 | D184: -268492.5498 | E184: 0 | F184: 233318.4504 | G184: =IF(C184=SUM(Month_of_Sale,PreDev_Timeline,Construction_Timeline),Rental_Sale_Price*(1-D$106)-SUM(H$136:H184)-SUM(D$102:D$103),0) -> 0 | H184: -44555.47672 | I184: -35174.09937 | J184: =IF(K184=1,0,IF(SUM(J$136:J183)>=Construction_Timeline,0,1)) -> 0 | K184: 0 | L184: 2030-01-01
C185: 49 | D185: -268492.5498 | E185: 0 | F185: 233901.7465 | G185: =IF(C185=SUM(Month_of_Sale,PreDev_Timeline,Construction_Timeline),Rental_Sale_Price*(1-D$106)-SUM(H$136:H185)-SUM(D$102:D$103),0) -> 0 | H185: -44768.97171 | I185: -34590.80324 | J185: =IF(K185=1,0,IF(SUM(J$136:J184)>=Construction_Timeline,0,1)) -> 0 | K185: 0 | L185: 2030-02-01
C186: 50 | D186: -268492.5498 | E186: 0 | F186: 234486.5009 | G186: =IF(C186=SUM(Month_of_Sale,PreDev_Timeline,Construction_Timeline),Rental_Sale_Price*(1-D$106)-SUM(H$136:H186)-SUM(D$102:D$103),0) -> 0 | H186: -44983.4897 | I186: -34006.04887 | J186: =IF(K186=1,0,IF(SUM(J$136:J185)>=Construction_Timeline,0,1)) -> 0 | K186: 0 | L186: 2030-03-01
C187: 51 | D187: -268492.5498 | E187: 0 | F187: 235072.7172 | G187: =IF(C187=SUM(Month_of_Sale,PreDev_Timeline,Construction_Timeline),Rental_Sale_Price*(1-D$106)-SUM(H$136:H187)-SUM(D$102:D$103),0) -> 0 | H187: -45199.03559 | I187: -33419.83262 | J187: =IF(K187=1,0,IF(SUM(J$136:J186)>=Construction_Timeline,0,1)) -> 0 | K187: 0 | L187: 2030-04-01
C188: 52 | D188: -268492.5498 | E188: 0 | F188: 235660.399 | G188: =IF(C188=SUM(Month_of_Sale,PreDev_Timeline,Construction_Timeline),Rental_Sale_Price*(1-D$106)-SUM(H$136:H188)-SUM(D$102:D$103),0) -> 0 | H188: -45415.6143 | I188: -32832.15083 | J188: =IF(K188=1,0,IF(SUM(J$136:J187)>=Construction_Timeline,0,1)) -> 0 | K188: 0 | L188: 2030-05-01
C189: 53 | D189: -268492.5498 | E189: 0 | F189: 236249.5499 | G189: =IF(C189=SUM(Month_of_Sale,PreDev_Timeline,Construction_Timeline),Rental_Sale_Price*(1-D$106)-SUM(H$136:H189)-SUM(D$102:D$103),0) -> 0 | H189: -45633.23079 | I189: -32242.99983 | J189: =IF(K189=1,0,IF(SUM(J$136:J188)>=Construction_Timeline,0,1)) -> 0 | K189: 0 | L189: 2030-06-01
C190: 54 | D190: -268492.5498 | E190: 0 | F190: 236840.1738 | G190: =IF(C190=SUM(Month_of_Sale,PreDev_Timeline,Construction_Timeline),Rental_Sale_Price*(1-D$106)-SUM(H$136:H190)-SUM(D$102:D$103),0) -> 0 | H190: -45851.89002 | I190: -31652.37596 | J190: =IF(K190=1,0,IF(SUM(J$136:J189)>=Construction_Timeline,0,1)) -> 0 | K190: 0 | L190: 2030-07-01
C191: 55 | D191: -268492.5498 | E191: 0 | F191: 237432.2743 | G191: =IF(C191=SUM(Month_of_Sale,PreDev_Timeline,Construction_Timeline),Rental_Sale_Price*(1-D$106)-SUM(H$136:H191)-SUM(D$102:D$103),0) -> 0 | H191: -46071.59699 | I191: -31060.27552 | J191: =IF(K191=1,0,IF(SUM(J$136:J190)>=Construction_Timeline,0,1)) -> 0 | K191: 0 | L191: 2030-08-01
C192: 56 | D192: -268492.5498 | E192: 0 | F192: 238025.8549 | G192: =IF(C192=SUM(Month_of_Sale,PreDev_Timeline,Construction_Timeline),Rental_Sale_Price*(1-D$106)-SUM(H$136:H192)-SUM(D$102:D$103),0) -> 0 | H192: -46292.35673 | I192: -30466.69484 | J192: =IF(K192=1,0,IF(SUM(J$136:J191)>=Construction_Timeline,0,1)) -> 0 | K192: 0 | L192: 2030-09-01
C193: 57 | D193: -268492.5498 | E193: 0 | F193: 238620.9196 | G193: =IF(C193=SUM(Month_of_Sale,PreDev_Timeline,Construction_Timeline),Rental_Sale_Price*(1-D$106)-SUM(H$136:H193)-SUM(D$102:D$103),0) -> 0 | H193: -46514.17427 | I193: -29871.6302 | J193: =IF(K193=1,0,IF(SUM(J$136:J192)>=Construction_Timeline,0,1)) -> 0 | K193: 0 | L193: 2030-10-01
C194: 58 | D194: -268492.5498 | E194: 0 | F194: 239217.4719 | G194: =IF(C194=SUM(Month_of_Sale,PreDev_Timeline,Construction_Timeline),Rental_Sale_Price*(1-D$106)-SUM(H$136:H194)-SUM(D$102:D$103),0) -> 0 | H194: -46737.05469 | I194: -29275.0779 | J194: =IF(K194=1,0,IF(SUM(J$136:J193)>=Construction_Timeline,0,1)) -> 0 | K194: 0 | L194: 2030-11-01
C195: 59 | D195: -268492.5498 | E195: 0 | F195: 239815.5156 | G195: =IF(C195=SUM(Month_of_Sale,PreDev_Timeline,Construction_Timeline),Rental_Sale_Price*(1-D$106)-SUM(H$136:H195)-SUM(D$102:D$103),0) -> 0 | H195: -46961.00307 | I195: -28677.03422 | J195: =IF(K195=1,0,IF(SUM(J$136:J194)>=Construction_Timeline,0,1)) -> 0 | K195: 0 | L195: 2030-12-01
C196: 60 | D196: -268492.5498 | E196: 0 | F196: 240415.0543 | G196: =IF(C196=SUM(Month_of_Sale,PreDev_Timeline,Construction_Timeline),Rental_Sale_Price*(1-D$106)-SUM(H$136:H196)-SUM(D$102:D$103),0) -> 0 | H196: -47186.02455 | I196: -28077.49543 | J196: =IF(K196=1,0,IF(SUM(J$136:J195)>=Construction_Timeline,0,1)) -> 0 | K196: 0 | L196: 2031-01-01
C197: 61 | D197: -268492.5498 | E197: 0 | F197: 241016.092 | G197: =IF(C197=SUM(Month_of_Sale,PreDev_Timeline,Construction_Timeline),Rental_Sale_Price*(1-D$106)-SUM(H$136:H197)-SUM(D$102:D$103),0) -> 0 | H197: -47412.12425 | I197: -27476.4578 | J197: =IF(K197=1,0,IF(SUM(J$136:J196)>=Construction_Timeline,0,1)) -> 0 | K197: 0 | L197: 2031-02-01
C198: 62 | D198: -268492.5498 | E198: 0 | F198: 241618.6322 | G198: =IF(C198=SUM(Month_of_Sale,PreDev_Timeline,Construction_Timeline),Rental_Sale_Price*(1-D$106)-SUM(H$136:H198)-SUM(D$102:D$103),0) -> 0 | H198: -47639.30734 | I198: -26873.91757 | J198: =IF(K198=1,0,IF(SUM(J$136:J197)>=Construction_Timeline,0,1)) -> 0 | K198: 0 | L198: 2031-03-01
C199: 63 | D199: -268492.5498 | E199: 0 | F199: 242222.6788 | G199: =IF(C199=SUM(Month_of_Sale,PreDev_Timeline,Construction_Timeline),Rental_Sale_Price*(1-D$106)-SUM(H$136:H199)-SUM(D$102:D$103),0) -> 0 | H199: -47867.57902 | I199: -26269.87099 | J199: =IF(K199=1,0,IF(SUM(J$136:J198)>=Construction_Timeline,0,1)) -> 0 | K199: 0 | L199: 2031-04-01
C200: 64 | D200: -268492.5498 | E200: 0 | F200: 242828.2355 | G200: =IF(C200=SUM(Month_of_Sale,PreDev_Timeline,Construction_Timeline),Rental_Sale_Price*(1-D$106)-SUM(H$136:H200)-SUM(D$102:D$103),0) -> 0 | H200: =IF(D200=0,0,PPMT(D$65/12,C200+1-PreDev_Timeline,D$66,D$103)) -> -48096.94451 | I200: =SUM(D200:G200) -> -25664.31429 | J200: =IF(K200=1,0,IF(SUM(J$136:J199)>=Construction_Timeline,0,1)) -> 0 | K200: 0 | L200: 2031-05-01
C201: 65 | D201: =-Loan_Payment*J201-IF(F201>0,Loan_Payment) -> -268492.5498 | E201: =-Monthly_soft_cost_per_unit*Total_Units*K201-Predev_Interest*K201 -> 0 | F201: =IF(AND(C201<SUM(Month_of_Sale,Construction_Timeline,PreDev_Timeline),SUM(J201:K201)=0),Weighted_NOI*Total_Units*(1+Rent_Escalation_Rate)^(C201-SUM(PreDev_Timeline,Construction_Timeline)),0) -> 243435.3061 | G201: =IF(C201=SUM(Month_of_Sale,PreDev_Timeline,Construction_Timeline),Rental_Sale_Price*(1-D$106)-SUM(H$136:H201)-SUM(D$102:D$103),0) -> 0 | H201: -48327.40903 | I201: -25057.2437 | J201: =IF(K201=1,0,IF(SUM(J$136:J200)>=Construction_Timeline,0,1)) -> 0 | K201: =IF(C201<=PreDev_Timeline,1,0) -> 0 | L201: 2031-06-01
C202: 66 | D202: -268492.5498 | E202: 0 | F202: 244043.8943 | G202: =IF(C202=SUM(Month_of_Sale,PreDev_Timeline,Construction_Timeline),Rental_Sale_Price*(1-D$106)-SUM(H$136:H202)-SUM(D$102:D$103),0) -> 0 | H202: -48558.97787 | I202: -24448.65543 | J202: =IF(K202=1,0,IF(SUM(J$136:J201)>=Construction_Timeline,0,1)) -> 0 | K202: 0 | L202: =EDATE(L201,1) -> 2031-07-01
C203: 67 | D203: -268492.5498 | E203: 0 | F203: 244654.0041 | G203: =IF(C203=SUM(Month_of_Sale,PreDev_Timeline,Construction_Timeline),Rental_Sale_Price*(1-D$106)-SUM(H$136:H203)-SUM(D$102:D$103),0) -> 0 | H203: -48791.6563 | I203: -23838.5457 | J203: =IF(K203=1,0,IF(SUM(J$136:J202)>=Construction_Timeline,0,1)) -> 0 | K203: 0 | L203: 2031-08-01
C204: 68 | D204: -268492.5498 | E204: 0 | F204: 245265.6391 | G204: =IF(C204=SUM(Month_of_Sale,PreDev_Timeline,Construction_Timeline),Rental_Sale_Price*(1-D$106)-SUM(H$136:H204)-SUM(D$102:D$103),0) -> 0 | H204: -49025.44966 | I204: -23226.91069 | J204: =IF(K204=1,0,IF(SUM(J$136:J203)>=Construction_Timeline,0,1)) -> 0 | K204: 0 | L204: 2031-09-01
C205: 69 | D205: -268492.5498 | E205: 0 | F205: 245878.8032 | G205: =IF(C205=SUM(Month_of_Sale,PreDev_Timeline,Construction_Timeline),Rental_Sale_Price*(1-D$106)-SUM(H$136:H205)-SUM(D$102:D$103),0) -> 0 | H205: -49260.36327 | I205: -22613.74659 | J205: =IF(K205=1,0,IF(SUM(J$136:J204)>=Construction_Timeline,0,1)) -> 0 | K205: 0 | L205: 2031-10-01
C206: 70 | D206: -268492.5498 | E206: 0 | F206: 246493.5002 | G206: =IF(C206=SUM(Month_of_Sale,PreDev_Timeline,Construction_Timeline),Rental_Sale_Price*(1-D$106)-SUM(H$136:H206)-SUM(D$102:D$103),0) -> 0 | H206: -49496.40251 | I206: -21999.04958 | J206: =IF(K206=1,0,IF(SUM(J$136:J205)>=Construction_Timeline,0,1)) -> 0 | K206: 0 | L206: 2031-11-01
C207: 71 | D207: -268492.5498 | E207: 0 | F207: 247109.7339 | G207: =IF(C207=SUM(Month_of_Sale,PreDev_Timeline,Construction_Timeline),Rental_Sale_Price*(1-D$106)-SUM(H$136:H207)-SUM(D$102:D$103),0) -> 0 | H207: -49733.57277 | I207: -21382.81583 | J207: =IF(K207=1,0,IF(SUM(J$136:J206)>=Construction_Timeline,0,1)) -> 0 | K207: 0 | L207: 2031-12-01
C208: 72 | D208: -268492.5498 | E208: 0 | F208: 247727.5083 | G208: =IF(C208=SUM(Month_of_Sale,PreDev_Timeline,Construction_Timeline),Rental_Sale_Price*(1-D$106)-SUM(H$136:H208)-SUM(D$102:D$103),0) -> 0 | H208: -49971.87948 | I208: -20765.0415 | J208: =IF(K208=1,0,IF(SUM(J$136:J207)>=Construction_Timeline,0,1)) -> 0 | K208: 0 | L208: 2032-01-01
C209: 73 | D209: -268492.5498 | E209: 0 | F209: 248346.8271 | G209: =IF(C209=SUM(Month_of_Sale,PreDev_Timeline,Construction_Timeline),Rental_Sale_Price*(1-D$106)-SUM(H$136:H209)-SUM(D$102:D$103),0) -> 0 | H209: -50211.32806 | I209: -20145.72273 | J209: =IF(K209=1,0,IF(SUM(J$136:J208)>=Construction_Timeline,0,1)) -> 0 | K209: 0 | L209: 2032-02-01
C210: 74 | D210: -268492.5498 | E210: 0 | F210: 248967.6941 | G210: =IF(C210=SUM(Month_of_Sale,PreDev_Timeline,Construction_Timeline),Rental_Sale_Price*(1-D$106)-SUM(H$136:H210)-SUM(D$102:D$103),0) -> 0 | H210: -50451.92401 | I210: -19524.85566 | J210: =IF(K210=1,0,IF(SUM(J$136:J209)>=Construction_Timeline,0,1)) -> 0 | K210: 0 | L210: 2032-03-01
C211: 75 | D211: -268492.5498 | E211: 0 | F211: 249590.1134 | G211: =IF(C211=SUM(Month_of_Sale,PreDev_Timeline,Construction_Timeline),Rental_Sale_Price*(1-D$106)-SUM(H$136:H211)-SUM(D$102:D$103),0) -> 0 | H211: -50693.67281 | I211: -18902.43642 | J211: =IF(K211=1,0,IF(SUM(J$136:J210)>=Construction_Timeline,0,1)) -> 0 | K211: 0 | L211: 2032-04-01
C212: 76 | D212: -268492.5498 | E212: 0 | F212: 250214.0886 | G212: =IF(C212=SUM(Month_of_Sale,PreDev_Timeline,Construction_Timeline),Rental_Sale_Price*(1-D$106)-SUM(H$136:H212)-SUM(D$102:D$103),0) -> 0 | H212: -50936.58 | I212: -18278.46114 | J212: =IF(K212=1,0,IF(SUM(J$136:J211)>=Construction_Timeline,0,1)) -> 0 | K212: 0 | L212: 2032-05-01
C213: 77 | D213: -268492.5498 | E213: 0 | F213: 250839.6239 | G213: =IF(C213=SUM(Month_of_Sale,PreDev_Timeline,Construction_Timeline),Rental_Sale_Price*(1-D$106)-SUM(H$136:H213)-SUM(D$102:D$103),0) -> 0 | H213: -51180.65111 | I213: -17652.92592 | J213: =IF(K213=1,0,IF(SUM(J$136:J212)>=Construction_Timeline,0,1)) -> 0 | K213: 0 | L213: 2032-06-01
C214: 78 | D214: -268492.5498 | E214: 0 | F214: 251466.7229 | G214: =IF(C214=SUM(Month_of_Sale,PreDev_Timeline,Construction_Timeline),Rental_Sale_Price*(1-D$106)-SUM(H$136:H214)-SUM(D$102:D$103),0) -> 0 | H214: -51425.89173 | I214: -17025.82686 | J214: =IF(K214=1,0,IF(SUM(J$136:J213)>=Construction_Timeline,0,1)) -> 0 | K214: 0 | L214: 2032-07-01
C215: 79 | D215: -268492.5498 | E215: 0 | F215: 252095.3897 | G215: =IF(C215=SUM(Month_of_Sale,PreDev_Timeline,Construction_Timeline),Rental_Sale_Price*(1-D$106)-SUM(H$136:H215)-SUM(D$102:D$103),0) -> 0 | H215: -51672.30746 | I215: -16397.16005 | J215: =IF(K215=1,0,IF(SUM(J$136:J214)>=Construction_Timeline,0,1)) -> 0 | K215: 0 | L215: 2032-08-01
C216: 80 | D216: -268492.5498 | E216: 0 | F216: 252725.6282 | G216: =IF(C216=SUM(Month_of_Sale,PreDev_Timeline,Construction_Timeline),Rental_Sale_Price*(1-D$106)-SUM(H$136:H216)-SUM(D$102:D$103),0) -> 0 | H216: -51919.90393 | I216: -15766.92158 | J216: =IF(K216=1,0,IF(SUM(J$136:J215)>=Construction_Timeline,0,1)) -> 0 | K216: 0 | L216: 2032-09-01
C217: 81 | D217: -268492.5498 | E217: 0 | F217: 253357.4423 | G217: =IF(C217=SUM(Month_of_Sale,PreDev_Timeline,Construction_Timeline),Rental_Sale_Price*(1-D$106)-SUM(H$136:H217)-SUM(D$102:D$103),0) -> 0 | H217: -52168.68681 | I217: -15135.10751 | J217: =IF(K217=1,0,IF(SUM(J$136:J216)>=Construction_Timeline,0,1)) -> 0 | K217: 0 | L217: 2032-10-01
C218: 82 | D218: -268492.5498 | E218: 0 | F218: 253990.8359 | G218: =IF(C218=SUM(Month_of_Sale,PreDev_Timeline,Construction_Timeline),Rental_Sale_Price*(1-D$106)-SUM(H$136:H218)-SUM(D$102:D$103),0) -> 0 | H218: -52418.66176 | I218: -14501.7139 | J218: =IF(K218=1,0,IF(SUM(J$136:J217)>=Construction_Timeline,0,1)) -> 0 | K218: 0 | L218: 2032-11-01
C219: 83 | D219: -268492.5498 | E219: 0 | F219: 254625.813 | G219: =IF(C219=SUM(Month_of_Sale,PreDev_Timeline,Construction_Timeline),Rental_Sale_Price*(1-D$106)-SUM(H$136:H219)-SUM(D$102:D$103),0) -> 0 | H219: -52669.83452 | I219: -13866.73681 | J219: =IF(K219=1,0,IF(SUM(J$136:J218)>=Construction_Timeline,0,1)) -> 0 | K219: 0 | L219: 2032-12-01
C220: 84 | D220: -268492.5498 | E220: 0 | F220: 255262.3775 | G220: =IF(C220=SUM(Month_of_Sale,PreDev_Timeline,Construction_Timeline),Rental_Sale_Price*(1-D$106)-SUM(H$136:H220)-SUM(D$102:D$103),0) -> 0 | H220: -52922.21081 | I220: -13230.17228 | J220: =IF(K220=1,0,IF(SUM(J$136:J219)>=Construction_Timeline,0,1)) -> 0 | K220: 0 | L220: 2033-01-01
C221: 85 | D221: -268492.5498 | E221: 0 | F221: 255900.5334 | G221: =IF(C221=SUM(Month_of_Sale,PreDev_Timeline,Construction_Timeline),Rental_Sale_Price*(1-D$106)-SUM(H$136:H221)-SUM(D$102:D$103),0) -> 0 | H221: -53175.7964 | I221: -12592.01634 | J221: =IF(K221=1,0,IF(SUM(J$136:J220)>=Construction_Timeline,0,1)) -> 0 | K221: 0 | L221: 2033-02-01
C222: 86 | D222: -268492.5498 | E222: 0 | F222: 256540.2848 | G222: =IF(C222=SUM(Month_of_Sale,PreDev_Timeline,Construction_Timeline),Rental_Sale_Price*(1-D$106)-SUM(H$136:H222)-SUM(D$102:D$103),0) -> 0 | H222: -53430.59709 | I222: -11952.265 | J222: =IF(K222=1,0,IF(SUM(J$136:J221)>=Construction_Timeline,0,1)) -> 0 | K222: 0 | L222: 2033-03-01
C223: 87 | D223: -268492.5498 | E223: 0 | F223: 257181.6355 | G223: =IF(C223=SUM(Month_of_Sale,PreDev_Timeline,Construction_Timeline),Rental_Sale_Price*(1-D$106)-SUM(H$136:H223)-SUM(D$102:D$103),0) -> 0 | H223: -53686.6187 | I223: -11310.91429 | J223: =IF(K223=1,0,IF(SUM(J$136:J222)>=Construction_Timeline,0,1)) -> 0 | K223: 0 | L223: 2033-04-01
C224: 88 | D224: -268492.5498 | E224: 0 | F224: 257824.5896 | G224: =IF(C224=SUM(Month_of_Sale,PreDev_Timeline,Construction_Timeline),Rental_Sale_Price*(1-D$106)-SUM(H$136:H224)-SUM(D$102:D$103),0) -> 0 | H224: -53943.86709 | I224: -10667.9602 | J224: =IF(K224=1,0,IF(SUM(J$136:J223)>=Construction_Timeline,0,1)) -> 0 | K224: 0 | L224: 2033-05-01
C225: 89 | D225: -268492.5498 | E225: 0 | F225: 258469.1511 | G225: =IF(C225=SUM(Month_of_Sale,PreDev_Timeline,Construction_Timeline),Rental_Sale_Price*(1-D$106)-SUM(H$136:H225)-SUM(D$102:D$103),0) -> 0 | H225: -54202.34811 | I225: -10023.39873 | J225: =IF(K225=1,0,IF(SUM(J$136:J224)>=Construction_Timeline,0,1)) -> 0 | K225: 0 | L225: 2033-06-01
C226: 90 | D226: -268492.5498 | E226: 0 | F226: 259115.3239 | G226: =IF(C226=SUM(Month_of_Sale,PreDev_Timeline,Construction_Timeline),Rental_Sale_Price*(1-D$106)-SUM(H$136:H226)-SUM(D$102:D$103),0) -> 0 | H226: -54462.0677 | I226: -9377.22585 | J226: =IF(K226=1,0,IF(SUM(J$136:J225)>=Construction_Timeline,0,1)) -> 0 | K226: 0 | L226: 2033-07-01
C227: 91 | D227: -268492.5498 | E227: 0 | F227: 259763.1122 | G227: =IF(C227=SUM(Month_of_Sale,PreDev_Timeline,Construction_Timeline),Rental_Sale_Price*(1-D$106)-SUM(H$136:H227)-SUM(D$102:D$103),0) -> 0 | H227: -54723.03177 | I227: -8729.43754 | J227: =IF(K227=1,0,IF(SUM(J$136:J226)>=Construction_Timeline,0,1)) -> 0 | K227: 0 | L227: 2033-08-01
C228: 92 | D228: -268492.5498 | E228: 0 | F228: 260412.52 | G228: =IF(C228=SUM(Month_of_Sale,PreDev_Timeline,Construction_Timeline),Rental_Sale_Price*(1-D$106)-SUM(H$136:H228)-SUM(D$102:D$103),0) -> 0 | H228: -54985.2463 | I228: -8080.029759 | J228: =IF(K228=1,0,IF(SUM(J$136:J227)>=Construction_Timeline,0,1)) -> 0 | K228: 0 | L228: 2033-09-01
C229: 93 | D229: -268492.5498 | E229: 0 | F229: 261063.5513 | G229: =IF(C229=SUM(Month_of_Sale,PreDev_Timeline,Construction_Timeline),Rental_Sale_Price*(1-D$106)-SUM(H$136:H229)-SUM(D$102:D$103),0) -> 0 | H229: -55248.71727 | I229: -7428.998459 | J229: =IF(K229=1,0,IF(SUM(J$136:J228)>=Construction_Timeline,0,1)) -> 0 | K229: 0 | L229: 2033-10-01
C230: 94 | D230: -268492.5498 | E230: 0 | F230: 261716.2102 | G230: =IF(C230=SUM(Month_of_Sale,PreDev_Timeline,Construction_Timeline),Rental_Sale_Price*(1-D$106)-SUM(H$136:H230)-SUM(D$102:D$103),0) -> 0 | H230: -55513.45071 | I230: -6776.339581 | J230: =IF(K230=1,0,IF(SUM(J$136:J229)>=Construction_Timeline,0,1)) -> 0 | K230: 0 | L230: 2033-11-01
C231: 95 | D231: -268492.5498 | E231: 0 | F231: 262370.5007 | G231: =IF(C231=SUM(Month_of_Sale,PreDev_Timeline,Construction_Timeline),Rental_Sale_Price*(1-D$106)-SUM(H$136:H231)-SUM(D$102:D$103),0) -> 0 | H231: -55779.45266 | I231: -6122.049055 | J231: =IF(K231=1,0,IF(SUM(J$136:J230)>=Construction_Timeline,0,1)) -> 0 | K231: 0 | L231: 2033-12-01
... 627 more rows

Sheet Model Outputs >>
B3: Model Outputs >>
C5: The following worksheet includes:
C6: » | D6: Run buttons to evaluate inputs from the Feasibility Evaluator Tool
D7: » | E7: Run "Typicals" Evaluation' button will analyze the findings of all project types and price tiers, and place findings in the Typical Project Financials matrix to the button's immediate right
D8: » | E8: Run Incentives Evaluation' button will analyze the findings of all project types and price tiers along with the user's activated incentive, and place findings in the Typical Project Financials (with Incentive) matrix located to the button's immediate right
D9: » | E9: The Incentive Impact matrix calculates the Yield and IRR implications of the applied incentive

Sheet Matrix
C2: "TYPICAL" WITHOUT INCENTIVE PROJECT FINANCIALS | K2: "TYPICAL" PROJECT FINANCIALS (WITH INCENTIVE) | S2: INCENTIVE IMPACT
C4: Yield on Cost | K4: Yield on Cost | S4: Yield on Cost
C5: Typology | D5: Tier 1 | E5: Tier 2 | F5: Tier 3 | G5: Tier 4 | H5: Tier 5 | K5: Typology | L5: Tier 1 | M5: Tier 2 | N5: Tier 3 | O5: Tier 4 | P5: Tier 5 | S5: Typology | T5: Tier 1 | U5: Tier 2 | V5: Tier 3 | W5: Tier 4 | X5: Tier 5
C6: High Rise | D6: 0.06119256856 | E6: 0.05939900594 | F6: 0.05784918939 | G6: 0.05517489396 | H6: 0.05548779743 | K6: High Rise | L6: 0.06653720533 | M6: 0.06432975578 | N6: 0.06237670542 | O6: 0.05920480018 | P6: 0.05954055773 | S6: High Rise | T6: =L6-D6 -> 0.005344636768 | U6: =M6-E6 -> 0.004930749849 | V6: 0.004527516029 | W6: 0.004029906218 | X6: 0.004052760301
C7: Mid Rise | D7: 0.04951624446 | E7: 0.04798663377 | F7: 0.0449735248 | G7: 0.04280101193 | H7: 0.04762793147 | K7: Mid Rise | L7: 0.05346485462 | M7: 0.05158994674 | N7: 0.04812134347 | O7: 0.04555677705 | P7: 0.05069448029 | S7: Mid Rise | T7: =L7-D7 -> 0.003948610152 | U7: =M7-E7 -> 0.003603312968 | V7: =N7-F7 -> 0.003147818669 | W7: =O7-G7 -> 0.002755765127 | X7: =P7-H7 -> 0.00306654882
C8: Low Rise | D8: 0.04411428375 | E8: 0.04093267851 | F8: 0.04237263892 | G8: 0.04112578837 | H8: 0.04139751062 | K8: Low Rise | L8: 0.04702769175 | M8: 0.0432103044 | N8: 0.044479191 | O8: 0.0429026494 | P8: 0.04318611156 | S8: Low Rise | T8: 0.002913408002 | U8: 0.002277625884 | V8: 0.00210655208 | W8: 0.001776861039 | X8: 0.00178860094
C9: Garden Apt | D9: 0.04198734094 | E9: 0.03896822872 | F9: 0.04061221859 | G9: 0.03957504048 | H9: 0.04044473976 | K9: Garden Apt | L9: 0.0446254755 | M9: 0.0409865124 | N9: 0.04246033684 | O9: 0.04110298959 | P9: 0.042006267 | S9: Garden Apt | T9: 0.002638134563 | U9: 0.002018283676 | V9: 0.001848118256 | W9: 0.001527949105 | X9: 0.001561527244
C10: Townhouse | D10: 0.04433380812 | E10: 0.04112333486 | F10: 0.04196845138 | G10: 0.04020685877 | H10: 0.03857190007 | K10: Townhouse | L10: 0.04788351385 | M10: 0.04403218642 | N10: 0.04493708211 | O10: 0.04283658541 | P10: 0.04086865294 | S10: Townhouse | T10: 0.00354970573 | U10: 0.002908851566 | V10: 0.002968630729 | W10: 0.002629726639 | X10: 0.002296752865
C11: Single Family | D11: 0.05143889234 | E11: 0.04683884515 | F11: 0.04787510824 | G11: 0.04587528374 | H11: 0.04409874285 | K11: Single Family | L11: 0.05576718622 | M11: 0.0504312631 | N11: 0.05154700488 | O11: 0.04919814865 | P11: 0.04708569729 | S11: Single Family | T11: 0.004328293876 | U11: 0.003592417952 | V11: 0.003671896643 | W11: 0.003322864901 | X11: 0.002986954441
C13: IRR | K13: IRR | S13: IRR
C14: Typology | D14: Tier 1 | E14: Tier 2 | F14: Tier 3 | G14: Tier 4 | H14: Tier 5 | K14: Typology | L14: Tier 1 | M14: Tier 2 | N14: Tier 3 | O14: Tier 4 | P14: Tier 5 | S14: Typology | T14: Tier 1 | U14: Tier 2 | V14: Tier 3 | W14: Tier 4 | X14: Tier 5
C15: High Rise | D15: 0.08032360375 | E15: 0.0768222779 | F15: 0.07306182086 | G15: 0.06240392625 | H15: 0.06487592161 | K15: High Rise | L15: 0.09788331389 | M15: 0.0941075474 | N15: 0.08987520635 | O15: 0.07871515453 | P15: 0.08122131526 | S15: High Rise | T15: =L15-D15 -> 0.01755971014 | U15: =M15-E15 -> 0.0172852695 | V15: =N15-F15 -> 0.01681338549 | W15: =O15-G15 -> 0.01631122828 | X15: =P15-H15 -> 0.01634539366
C16: Mid Rise | D16: 0.03923886716 | E16: 0.03269106448 | F16: 0.01457261145 | G16: -0.002185311168 | H16: 0.03309312761 | K16: Mid Rise | L16: 0.05938480198 | M16: 0.05272184312 | N16: 0.03540064991 | O16: 0.01900364459 | P16: 0.05088964403 | S16: Mid Rise | T16: =L16-D16 -> 0.02014593482 | U16: 0.02003077865 | V16: 0.02082803845 | W16: 0.02118895575 | X16: 0.01779651642
C17: Low Rise | D17: 0.005469533801 | E17: 2.980232239e-09 | F17: -0.006591512263 | G17: 2.980232239e-09 | H17: 2.980232239e-09 | K17: Low Rise | L17: 0.02558004558 | M17: -7.480792701e-05 | N17: 0.01040822566 | O17: -0.0003370464779 | P17: 0.003074601293 | S17: Low Rise | T17: 0.02011051178 | U17: -7.481090724e-05 | V17: 0.01699973792 | W17: -0.0003370494582 | X17: 0.003074598312
C18: Garden Apt | D18: -0.01561148912 | E18: 2.980232239e-09 | F18: -0.02439161316 | G18: 2.980232239e-09 | H18: 2.980232239e-09 | K18: Garden Apt | L18: 0.005248728395 | M18: -0.02136097588 | N18: -0.007104029506 | O18: -0.01808154657 | P18: -0.006495701894 | S18: Garden Apt | T18: 0.02086021751 | U18: -0.02136097886 | V18: 0.01728758365 | W18: -0.01808154956 | X18: -0.006495704874
C19: Townhouse | D19: 0.003737869859 | E19: -0.01845563203 | F19: -0.007749348506 | G19: -0.02325611673 | H19: 2.980232239e-09 | K19: Townhouse | L19: 0.02715853751 | M19: 0.006634107232 | N19: 0.01656094491 | O19: 0.002210155129 | P19: -0.01524234936 | S19: Townhouse | T19: 0.02342066765 | U19: 0.02508973926 | V19: 0.02431029342 | W19: 0.02546627186 | X19: -0.01524235234
C20: Single Family | D20: 0.04483043849 | E20: 0.02533052266 | F20: 0.03550761044 | G20: 0.02493340671 | H20: 0.01344793141 | K20: Single Family | L20: 0.06494142115 | M20: 0.04652941525 | N20: 0.0565315932 | O20: 0.04632378519 | P20: 0.03505367339 | S20: Single Family | T20: 0.02011098266 | U20: 0.02119889259 | V20: 0.02102398276 | W20: 0.02139037848 | X20: 0.02160574198
C22: KEY
C23: Likely Feasible | D23: 0.22 | E23: (numbers for example only)
C24: Possibly Feasible | D24: 0.1768157065
C25: Not Likely Feasible | D25: 0.08560406864
C29: NOTE: Macros are required for these tables to be re-calculated

Sheet Assumptions >>
B3: Assumptions >>
C5: The following tabs consists of:
C6: » | D6: Hard Cost Assumptions
C7: » | D7: Land Cost Assumptions
C8: » | D8: Soft Cost Assumptions
C9: » | D9: Revenue Assumptions
C10: » | D10: Financial Assumptions
C11: » | D11: Other Relevant Assumptions
C12: » | D12: Residential Unit Sizes
H14: For users wishing to update any assumptions, cells this color | J14: directly link to the Feasibility Evaluator's inputs and calculations. All others have no direct connection
C15: Please avoid moving cell locations to prevent impacts to formulas or macros

Sheet HardCosts
B2: PER UNIT BUILDING COSTS
B4: Housing Type | C4: Units per building | D4: Per Unit Price | E4: Add'l Per Unit per Bldg Discount
B5: Garden Apt | C5: 18 | D5: 275275 | E5: -310
B6: Low Rise | C6: 27 | D6: 297000 | E6: -310
B7: Mid Rise | C7: 45 | D7: 300000 | E7: -300
B8: High Rise | C8: 100 | D8: 243750 | E8: -110
B9: Single Family | C9: 1 | D9: 412000 | E9: 0
B10: Townhouse | C10: 1 | D10: 387600 | E10: 0
B12: PER SPACE PARKING COSTS
B14: Parking | C14: Per Space
B15: Above Ground Deck | C15: =98*400 -> 39200
B16: Below Ground Deck | C16: =140*400 -> 56000
B17: Surface | C17: =12*400 -> 4800
B19: PARKING ASSUMPTIONS
B20: Parking Type
B21: Housing Type | C21: Tier 1 | D21: Tier 2 | E21: Tier 3 | F21: Tier 4 | G21: Tier 5
B22: Garden Apt | C22: Above Ground Deck | D22: Above Ground Deck | E22: Surface | F22: Surface | G22: Surface
B23: Low Rise | C23: Above Ground Deck | D23: Above Ground Deck | E23: Surface | F23: Surface | G23: Surface
B24: Mid Rise | C24: Above Ground Deck | D24: Above Ground Deck | E24: Above Ground Deck | F24: Above Ground Deck | G24: Surface
B25: High Rise | C25: Below Ground Deck | D25: Below Ground Deck | E25: Above Ground Deck | F25: Above Ground Deck | G25: Above Ground Deck
B26: Single Family | C26: Surface | D26: Surface | E26: Surface | F26: Surface | G26: Surface
B27: Townhouse | C27: Surface | D27: Surface | E27: Surface | F27: Surface | G27: Surface
B28: Number of Spaces
B29: Housing Type | C29: Tier 1 | D29: Tier 2 | E29: Tier 3 | F29: Tier 4 | G29: Tier 5
B30: Garden Apt | C30: 0.75 | D30: 0.75 | E30: 1 | F30: 1 | G30: 1
B31: Low Rise | C31: 0.75 | D31: 0.75 | E31: 1 | F31: 1 | G31: 1
B32: Mid Rise | C32: 0.75 | D32: 0.75 | E32: 1 | F32: 1 | G32: 1
B33: High Rise | C33: 0.75 | D33: 0.75 | E33: 1 | F33: 1 | G33: 1
B34: Single Family | C34: 1 | D34: 1 | E34: 1 | F34: 2 | G34: 2
B35: Townhouse | C35: 1 | D35: 1 | E35: 1 | F35: 2 | G35: 2
B38: SITE PREP COSTS
B40: Per | C40: Amount
B41: Square Foot | C41: 10
B43: ADDITIONAL HARD COST CONTINGENCY
B45: Amount
B46: 0

Sheet SoftCosts
B2: CONSULTANT FEES
B4: Type | C4: Amount
B5: Standard | C5: 0.15 | D5: assumes standard engagement period
B6: Minimum | C6: 0.12
B8: MUNICIPAL FEES
B10: Amount | C10: Notes
B11: 0.045 | C11: of hard costs

Sheet LandCosts
B2: PER UNIT LAND COSTS
B4: Housing Type | C4: Tier 1 | D4: Tier 2 | E4: Tier 3 | F4: Tier 4 | G4: Tier 5
B5: Garden Apt | C5: 47500 | D5: 36000 | E5: 31000 | F5: 26500 | G5: 18500
B6: Low Rise | C6: 25000 | D6: 20500 | E6: 17500 | F6: 13000 | G6: 10500
B7: Mid Rise | C7: 21500 | D7: 16000 | E7: 12000 | F7: 11333.33333 | G7: 9333.333333
B8: High Rise | C8: 21500 | D8: 16000 | E8: 12000 | F8: 11333.33333 | G8: 9333.333333
B9: Single Family | C9: 81000 | D9: 58166.66667 | E9: 45000 | F9: 36500 | G9: 30500
B10: Townhouse | C10: 67833.33333 | D10: 48555.55556 | E10: 37611.11111 | F10: 30055.55556 | G10: 26333.33333

Sheet Revenues
B2: SUMMARY
B4: Housing Type | C4: Studio | D4: 1 Bed | E4: 2 Bed | F4: 3 Bed
B5: Garden Apt | C5: 1810 | D5: 1940 | E5: 2310 | F5: 2790
B6: Low Rise | C6: 1809.5 | D6: 2100.28125 | E6: 2540 | F6: 2850
B7: Mid Rise | C7: 1930 | D7: 2310 | E7: 3410 | F7: 4700
B8: High Rise | C8: 2130 | D8: 2540 | E8: 3750 | F8: 4700
B9: Single Family | E9: 3540 | F9: 4000
B10: Townhouse | E10: 2800 | F10: 3100
B12: Tier Adjustments | C12: Tier 1 | D12: Tier 2 | E12: Tier 3 | F12: Tier 4 | G12: Tier 5
B13: Garden Apt | C13: 1.1 | D13: 1 | E13: 0.95 | F13: 0.9 | G13: 0.9
B14: Low Rise | C14: 1.1 | D14: 1 | E14: 0.95 | F14: 0.9 | G14: 0.9
B15: Mid Rise | C15: 1.05 | D15: 1 | E15: 0.95 | F15: 0.9 | G15: 0.9
B16: High Rise | C16: 1.05 | D16: 1 | E16: 0.95 | F16: 0.9 | G16: 0.9
B17: Single Family | C17: 1.1 | D17: 1 | E17: 1 | F17: 0.95 | G17: 0.9
B18: Townhouse | C18: 1.1 | D18: 1 | E18: 1 | F18: 0.95 | G18: 0.9
B22: Affordable Rents | C22: Studio | D22: 1 Bed | E22: 2 Bed | F22: 3 Bed
B23: 1 | C23: 2203 | D23: 2517 | E23: 2831 | F23: 3145
B24: 0.8 | C24: 1762.5 | D24: 2013.75 | E24: 2265 | F24: 2516.25
B25: 0.6 | C25: 1322.25 | D25: 1509.5 | E25: 1699.5 | F25: 1887
B26: 0.5 | C26: 1101.25 | D26: 1258.75 | E26: 1416.25 | F26: 1572.5
B27: 0.3 | C27: 661.25 | D27: 755 | E27: 850 | F27: 943.75

Sheet Financials
B2: FINANCE & FINANCIAL ASSUMPTIONS
B4: Type | C4: Amount
B5: Loan-to-Value | C5: 0.65
B6: Construction Loan Rate | C6: 0.0575
B7: Construction Loan Timeframe | C7: 360
B8: Origination Fees | C8: 0.008
B9: Month of Sale | C9: 180
B10: Pre-Dev Equity | C10: 0.75
B11: Predev Loan Rate | C11: 0.11
B12: Cap Rate | C12: 0.0475
B13: Exit Cap Rate | C13: =C12+0.0005*C9/12 -> 0.055
B17: YIELD ON COST THRESHOLDS
B19: Likely Feasible | C19: =C12+0.02 -> 0.0675 | D19: <-- defined as 200 bps above cap rate
B20: Possibly Feasible | C20: =C12+0.01 -> 0.0575 | D20: <-- defined as 100 bps above cap rate
B23: IRR THRESHOLDS
B25: Likely Feasible | C25: 0.15 | D25: <-- defined by typical industry standards - adjust if more localized changes are needed
B26: Possibly Feasible | C26: 0.12 | D26: <-- defined by typical industry standards - adjust if more localized changes are needed

Sheet OtherAssumptions
B2: Tax
B4: Rate | C4: Note
B5: 0.98 | C5: per $100 assessed value
B8: CONSTRUCTION TIMELINE
B10: Housing Type | C10: Months
B11: Garden Apt | C11: 12
B12: Low Rise | C12: 16
B13: Mid Rise | C13: 18
B14: High Rise | C14: 24
B15: Single Family | C15: 10
B16: Townhouse | C16: 10
B18: PREDEVELOPMENT TIMELINE
B20: Housing Type | C20: Tier 1 | D20: Tier 2 | E20: Tier 3 | F20: Tier 4 | G20: Tier 5
B21: Garden Apt | C21: 16 | D21: 16 | E21: 16 | F21: 16 | G21: 16
B22: Low Rise | C22: 16 | D22: 16 | E22: 16 | F22: 16 | G22: 16
B23: Mid Rise | C23: 16 | D23: 16 | E23: 16 | F23: 16 | G23: 16
B24: High Rise | C24: 16 | D24: 16 | E24: 16 | F24: 16 | G24: 16
B25: Single Family | C25: 16 | D25: 16 | E25: 16 | F25: 16 | G25: 16
B26: Townhouse | C26: 16 | D26: 16 | E26: 16 | F26: 16 | G26: 16
B28: SITE SIZES (ACRES)
B30: Housing Type | C30: Tier 1 | D30: Tier 2 | E30: Tier 3 | F30: Tier 4 | G30: Tier 5
B31: Garden Apt | C31: 1 | D31: 2 | E31: 2 | F31: 3 | G31: 3
B32: Low Rise | C32: 2 | D32: 2 | E32: 2 | F32: 3 | G32: 3
B33: Mid Rise | C33: 2 | D33: 2 | E33: 2 | F33: 3 | G33: 3
B34: High Rise | C34: 2 | D34: 2 | E34: 2 | F34: 3 | G34: 3
B35: Single Family | C35: 1 | D35: 2 | E35: 2 | F35: 3 | G35: 4
B36: Townhouse | C36: 1 | D36: 2 | E36: 2 | F36: 3 | G36: 4
B39: UNIT MIX
B41: Housing Type | C41: Studio % | D41: 1 Bed % | E41: 2 Bed % | F41: 3 Bed %
B42: Garden Apt | C42: 0.1 | D42: 0.5 | E42: 0.3 | F42: 0.1
B43: Low Rise | C43: 0.1 | D43: 0.5 | E43: 0.3 | F43: 0.1
B44: Mid Rise | C44: 0.15 | D44: 0.5 | E44: 0.3 | F44: 0.05
B45: High Rise | C45: 0.2 | D45: 0.45 | E45: 0.3 | F45: 0.05
B46: Single Family | C46: 0 | D46: 0 | E46: 0.2 | F46: 0.8
B47: Townhouse | C47: 0 | D47: 0 | E47: 0.33 | F47: 0.67
B51: STRUCTURES IN DEVELOPMENT
B53: Housing Type | C53: Tier 1 | D53: Tier 2 | E53: Tier 3 | F53: Tier 4 | G53: Tier 5
B54: Garden Apt | C54: 4 | D54: 4 | E54: 4 | F54: 8 | G54: 8
B55: Low Rise | C55: 4 | D55: 4 | E55: 4 | F55: 8 | G55: 8
B56: Mid Rise | C56: 3 | D56: 3 | E56: 3 | F56: 4 | G56: 4
B57: High Rise | C57: 2 | D57: 2 | E57: 2 | F57: 3 | G57: 3
B58: Single Family | C58: 20 | D58: 20 | E58: 20 | F58: 30 | G58: 40
B59: Townhouse | C59: 40 | D59: 40 | E59: 40 | F59: 60 | G59: 80
B61: ADJUSTMENT SCALES
C63: High | D63: Standard | E63: Low
B64: Construction | C64: 1.2 | D64: 1 | E64: 0.85
B65: Land | C65: 1.25 | D65: 1 | E65: 0.75
B66: Sale Price | C66: 1.15 | D66: 1 | E66: 0.85
B67: Sales Timeline | C67: 0.5 | D67: 1 | E67: 1.5
B68: Rents | C68: 1.15 | D68: 1 | E68: 0.85
B70: UNIT SIZE
B72: Housing Type | C72: AVERAGE PER UNIT SIZE
B73: Garden | C73: 1300 | D73: <----
B74: Low Rise | C74: 1100 | D74: <----
B75: Mid Rise | C75: 1000 | D75: <----
B76: High Rise | C76: 900
B79: OCCUPANCY RATES
B81: Type | C81: Rate
B82: Market | C82: 0.97
B83: Affordable | C83: 0.97

Sheet Other Documentation >>
B3: Other Documentation:
C5: The following tabs consists of:
C6: » | D6: Glossary of Terms

Sheet Glossary
B2: Glossary of Terms:
C4: Term | D4: Definition
C5: AMI | D5: Annual Median Income
C6: Annual Revenue Waived | D6: The annual amount of theoretical tax revenue waived or otherwise reimbursed through the selected tax abatement
C7: Cap Rate | D7: The annual rate of return of the project at the present time, calculated by dividing the properties Net Annual Income by its current market value.
C8: Duplex | D8: One residential dwelling separated into two units.
C9: Exit Cap Rate | D9: The projected capitalization rate used to estimate a property's future selling price at the end of its holding period. Calculated by the property's expected future Net Operating Income at sale date by anticipated sale price at sale date.
C10: Gap Financing | D10: Short-term loan used to cover a temporary funding shortfall between and expected financial event and the availability of longer-term funds
C11: Garden Apt | D11: Residential buildings typically between 2 to 4 stories that have access to greenspaces.
C12: Hard Cost | D12: Tangible, physical expense directly related to the constructing of a building or structure, such as materials, labor, and equipment.
C13: High Rise | D13: Multi-story residential building that typically exceeds 7 stories or 75 feet tall.
C14: IRR | D14: Internal Rate of Return. The Net Present Value of all cashflows (positive and negative) from the project.
C15: Loan-to-Value | D15: An assessment of lending risk that is the ratio of the loan amount to the value of the asset, calculated by dividing the loan amount by the appraised value then multiplying by 100.
C16: Low Rise | D16: Residential buildings typically with no more than 4 stories and typically have limited greenspaces.
C17: Mid Rise | D17: Multi-story residential building typically ranging from 5 to 10 stories or less than 75 feet tall.
C18: Net Operating Income | D18: Calculation of a property's profitability that represents its total income minus all operating expenses, before accounting for financing costs and income taxes.
C19: Occupancy Rate | D19: The percentage of units assumed to be occupied and paying rent. Occupancy rates can be set by users for both market-rate and affordable units
C20: Pre-Dev Equity | D20: Percentage of investor's ownership during predevelopment
C21: Price / Land Context | D21: 5 tiers based on estimated land costs and rents. Not geographically constrained.
C22: Single Family | D22: Detached, free-standing residential unit on its own plot of land, and is used by one household.
C23: Single Family Attached | D23: Residential bulding that shares one or more walls with adjacent units but includes it own private entrance.
C24: Site Development Costs | D24: Pre-development and development costs, including hard costs (construction) and soft costs (fess, design, etc.). Total units multiplied by total of hard costs per unit divided by total of soft costs per unit.
C25: Soft Cost | D25: All expenses not directly tied to the physical labor and materials of the project itself, for example, project design, management, financing, and administration costs.
C26: Tax Abatement - Rent Gap Model | D26: The abatement is applied as a percentage of the gap between market rate units and the required affordable rent rate
C27: Tax Abatement - Traditional | D27: The abatement is applied as a percentage of the new, increment taxes paid on either All or just the Affordable Units as selected; the original base taxes are not reduced by the abatement percentage calculation
C28: Total Revenue Waived | D28: The total amount of theoretical tax revenue waived or otherwise reimbursed through the selected tax abatement over the full course of the tax abatement period
C29: Townhouse | D29: Residential bulding that is typically tall and narrow with 2 to 3 stories that shares one or more walls with adjacent units but includes it own private entrance.
C30: Triplex | D30: One residential dwelling separated into three units.
C31: Yield on Cost | D31: Measurement of the projected annual income of a development relevant to the total cost of the project to determine profitability. Calculated by dividing Net Operating Income by total project cost.

Sheet VBAcode
A1: Note to user: for those who cannot enable macros, you can use the VBA code below to re-create the macros. Please paste this directly into your Visual Basic window
A3: Sub MatrixFiller()
A5: Worksheets("Matrix").Range("Matrix_First_Cell").Activate
A6: 'High Rise'
A7: Worksheets("FeasibilityEvaluator").Range("Building_Type").Value = "High Rise"
A8: Worksheets("FeasibilityEvaluator").Range("Price_Land_Context").Value = "Tier 1"
A9: ActiveCell.Value = Worksheets("FeasibilityEvaluator").Range("Yield_on_Cost").Value
A10: ActiveCell.Offset(9, 0).Select
A11: ActiveCell.Value = Worksheets("FeasibilityEvaluator").Range("IRR").Value
A12: ActiveCell.Offset(-9, 1).Select
A13: Worksheets("FeasibilityEvaluator").Range("Price_Land_Context").Value = "Tier 2"
A14: ActiveCell.Value = Worksheets("FeasibilityEvaluator").Range("Yield_on_Cost").Value
A15: ActiveCell.Offset(9, 0).Select
A16: ActiveCell.Value = Worksheets("FeasibilityEvaluator").Range("IRR").Value
A17: ActiveCell.Offset(-9, 1).Select
A18: Worksheets("FeasibilityEvaluator").Range("Price_Land_Context").Value = "Tier 3"
A19: ActiveCell.Value = Worksheets("FeasibilityEvaluator").Range("Yield_on_Cost").Value
A20: ActiveCell.Offset(9, 0).Select
A21: ActiveCell.Value = Worksheets("FeasibilityEvaluator").Range("IRR").Value
A22: ActiveCell.Offset(-9, 1).Select
A23: Worksheets("FeasibilityEvaluator").Range("Price_Land_Context").Value = "Tier 4"
A24: ActiveCell.Value = Worksheets("FeasibilityEvaluator").Range("Yield_on_Cost").Value
A25: ActiveCell.Offset(9, 0).Select
A26: ActiveCell.Value = Worksheets("FeasibilityEvaluator").Range("IRR").Value
A27: ActiveCell.Offset(-9, 1).Select
A28: Worksheets("FeasibilityEvaluator").Range("Price_Land_Context").Value = "Tier 5"
A29: ActiveCell.Value = Worksheets("FeasibilityEvaluator").Range("Yield_on_Cost").Value
A30: ActiveCell.Offset(9, 0).Select
A31: ActiveCell.Value = Worksheets("FeasibilityEvaluator").Range("IRR").Value
A32: ActiveCell.Offset(-8, -4).Select
A34: Worksheets("FeasibilityEvaluator").Range("Building_Type").Value = "Mid Rise"
A35: Worksheets("FeasibilityEvaluator").Range("Price_Land_Context").Value = "Tier 1"
A36: ActiveCell.Value = Worksheets("FeasibilityEvaluator").Range("Yield_on_Cost").Value
A37: ActiveCell.Offset(9, 0).Select
A38: ActiveCell.Value = Worksheets("FeasibilityEvaluator").Range("IRR").Value
A39: ActiveCell.Offset(-9, 1).Select
A40: Worksheets("FeasibilityEvaluator").Range("Price_Land_Context").Value = "Tier 2"
A41: ActiveCell.Value = Worksheets("FeasibilityEvaluator").Range("Yield_on_Cost").Value
A42: ActiveCell.Offset(9, 0).Select
A43: ActiveCell.Value = Worksheets("FeasibilityEvaluator").Range("IRR").Value
A44: ActiveCell.Offset(-9, 1).Select
A45: Worksheets("FeasibilityEvaluator").Range("Price_Land_Context").Value = "Tier 3"
A46: ActiveCell.Value = Worksheets("FeasibilityEvaluator").Range("Yield_on_Cost").Value
A47: ActiveCell.Offset(9, 0).Select
A48: ActiveCell.Value = Worksheets("FeasibilityEvaluator").Range("IRR").Value
A49: ActiveCell.Offset(-9, 1).Select
A50: Worksheets("FeasibilityEvaluator").Range("Price_Land_Context").Value = "Tier 4"
A51: ActiveCell.Value = Worksheets("FeasibilityEvaluator").Range("Yield_on_Cost").Value
A52: ActiveCell.Offset(9, 0).Select
A53: ActiveCell.Value = Worksheets("FeasibilityEvaluator").Range("IRR").Value
A54: ActiveCell.Offset(-9, 1).Select
A55: Worksheets("FeasibilityEvaluator").Range("Price_Land_Context").Value = "Tier 5"
A56: ActiveCell.Value = Worksheets("FeasibilityEvaluator").Range("Yield_on_Cost").Value
A57: ActiveCell.Offset(9, 0).Select
A58: ActiveCell.Value = Worksheets("FeasibilityEvaluator").Range("IRR").Value
A59: ActiveCell.Offset(-8, -4).Select
A61: Worksheets("FeasibilityEvaluator").Range("Building_Type").Value = "Low Rise"
A62: Worksheets("FeasibilityEvaluator").Range("Price_Land_Context").Value = "Tier 1"
A63: ActiveCell.Value = Worksheets("FeasibilityEvaluator").Range("Yield_on_Cost").Value
A64: ActiveCell.Offset(9, 0).Select
A65: ActiveCell.Value = Worksheets("FeasibilityEvaluator").Range("IRR").Value
A66: ActiveCell.Offset(-9, 1).Select
A67: Worksheets("FeasibilityEvaluator").Range("Price_Land_Context").Value = "Tier 2"
A68: ActiveCell.Value = Worksheets("FeasibilityEvaluator").Range("Yield_on_Cost").Value
A69: ActiveCell.Offset(9, 0).Select
A70: ActiveCell.Value = Worksheets("FeasibilityEvaluator").Range("IRR").Value
A71: ActiveCell.Offset(-9, 1).Select
A72: Worksheets("FeasibilityEvaluator").Range("Price_Land_Context").Value = "Tier 3"
A73: ActiveCell.Value = Worksheets("FeasibilityEvaluator").Range("Yield_on_Cost").Value
A74: ActiveCell.Offset(9, 0).Select
A75: ActiveCell.Value = Worksheets("FeasibilityEvaluator").Range("IRR").Value
A76: ActiveCell.Offset(-9, 1).Select
A77: Worksheets("FeasibilityEvaluator").Range("Price_Land_Context").Value = "Tier 4"
A78: ActiveCell.Value = Worksheets("FeasibilityEvaluator").Range("Yield_on_Cost").Value
A79: ActiveCell.Offset(9, 0).Select
A80: ActiveCell.Value = Worksheets("FeasibilityEvaluator").Range("IRR").Value
A81: ActiveCell.Offset(-9, 1).Select
A82: Worksheets("FeasibilityEvaluator").Range("Price_Land_Context").Value = "Tier 5"
A83: ActiveCell.Value = Worksheets("FeasibilityEvaluator").Range("Yield_on_Cost").Value
A84: ActiveCell.Offset(9, 0).Select
A85: ActiveCell.Value = Worksheets("FeasibilityEvaluator").Range("IRR").Value
A86: ActiveCell.Offset(-8, -4).Select
A88: Worksheets("FeasibilityEvaluator").Range("Building_Type").Value = "Garden Apt"
A89: Worksheets("FeasibilityEvaluator").Range("Price_Land_Context").Value = "Tier 1"
A90: ActiveCell.Value = Worksheets("FeasibilityEvaluator").Range("Yield_on_Cost").Value
A91: ActiveCell.Offset(9, 0).Select
A92: ActiveCell.Value = Worksheets("FeasibilityEvaluator").Range("IRR").Value
A93: ActiveCell.Offset(-9, 1).Select
A94: Worksheets("FeasibilityEvaluator").Range("Price_Land_Context").Value = "Tier 2"
A95: ActiveCell.Value = Worksheets("FeasibilityEvaluator").Range("Yield_on_Cost").Value
A96: ActiveCell.Offset(9, 0).Select
A97: ActiveCell.Value = Worksheets("FeasibilityEvaluator").Range("IRR").Value
A98: ActiveCell.Offset(-9, 1).Select
A99: Worksheets("FeasibilityEvaluator").Range("Price_Land_Context").Value = "Tier 3"
A100: ActiveCell.Value = Worksheets("FeasibilityEvaluator").Range("Yield_on_Cost").Value
A101: ActiveCell.Offset(9, 0).Select
A102: ActiveCell.Value = Worksheets("FeasibilityEvaluator").Range("IRR").Value
A103: ActiveCell.Offset(-9, 1).Select
A104: Worksheets("FeasibilityEvaluator").Range("Price_Land_Context").Value = "Tier 4"
A105: ActiveCell.Value = Worksheets("FeasibilityEvaluator").Range("Yield_on_Cost").Value
A106: ActiveCell.Offset(9, 0).Select
A107: ActiveCell.Value = Worksheets("FeasibilityEvaluator").Range("IRR").Value
A108: ActiveCell.Offset(-9, 1).Select
A109: Worksheets("FeasibilityEvaluator").Range("Price_Land_Context").Value = "Tier 5"
A110: ActiveCell.Value = Worksheets("FeasibilityEvaluator").Range("Yield_on_Cost").Value
A111: ActiveCell.Offset(9, 0).Select
A112: ActiveCell.Value = Worksheets("FeasibilityEvaluator").Range("IRR").Value
A113: ActiveCell.Offset(-8, -4).Select
A115: Worksheets("FeasibilityEvaluator").Range("Building_Type").Value = "Townhouse"
A116: Worksheets("FeasibilityEvaluator").Range("Price_Land_Context").Value = "Tier 1"
A117: ActiveCell.Value = Worksheets("FeasibilityEvaluator").Range("Yield_on_Cost").Value
A118: ActiveCell.Offset(9, 0).Select
A119: ActiveCell.Value = Worksheets("FeasibilityEvaluator").Range("IRR").Value
A120: ActiveCell.Offset(-9, 1).Select
A121: Worksheets("FeasibilityEvaluator").Range("Price_Land_Context").Value = "Tier 2"
A122: ActiveCell.Value = Worksheets("FeasibilityEvaluator").Range("Yield_on_Cost").Value
A123: ActiveCell.Offset(9, 0).Select
A124: ActiveCell.Value = Worksheets("FeasibilityEvaluator").Range("IRR").Value
A125: ActiveCell.Offset(-9, 1).Select
A126: Worksheets("FeasibilityEvaluator").Range("Price_Land_Context").Value = "Tier 3"
A127: ActiveCell.Value = Worksheets("FeasibilityEvaluator").Range("Yield_on_Cost").Value
A128: ActiveCell.Offset(9, 0).Select
A129: ActiveCell.Value = Worksheets("FeasibilityEvaluator").Range("IRR").Value
A130: ActiveCell.Offset(-9, 1).Select
A131: Worksheets("FeasibilityEvaluator").Range("Price_Land_Context").Value = "Tier 4"
A132: ActiveCell.Value = Worksheets("FeasibilityEvaluator").Range("Yield_on_Cost").Value
A133: ActiveCell.Offset(9, 0).Select
A134: ActiveCell.Value = Worksheets("FeasibilityEvaluator").Range("IRR").Value
A135: ActiveCell.Offset(-9, 1).Select
A136: Worksheets("FeasibilityEvaluator").Range("Price_Land_Context").Value = "Tier 5"
A137: ActiveCell.Value = Worksheets("FeasibilityEvaluator").Range("Yield_on_Cost").Value
A138: ActiveCell.Offset(9, 0).Select
A139: ActiveCell.Value = Worksheets("FeasibilityEvaluator").Range("IRR").Value
A140: ActiveCell.Offset(-8, -4).Select
A142: Worksheets("FeasibilityEvaluator").Range("Building_Type").Value = "Single Family"
A143: Worksheets("FeasibilityEvaluator").Range("Price_Land_Context").Value = "Tier 1"
A144: ActiveCell.Value = Worksheets("FeasibilityEvaluator").Range("Yield_on_Cost").Value
A145: ActiveCell.Offset(9, 0).Select
A146: ActiveCell.Value = Worksheets("FeasibilityEvaluator").Range("IRR").Value
A147: ActiveCell.Offset(-9, 1).Select
A148: Worksheets("FeasibilityEvaluator").Range("Price_Land_Context").Value = "Tier 2"
A149: ActiveCell.Value = Worksheets("FeasibilityEvaluator").Range("Yield_on_Cost").Value
A150: ActiveCell.Offset(9, 0).Select
A151: ActiveCell.Value = Worksheets("FeasibilityEvaluator").Range("IRR").Value
A152: ActiveCell.Offset(-9, 1).Select
A153: Worksheets("FeasibilityEvaluator").Range("Price_Land_Context").Value = "Tier 3"
A154: ActiveCell.Value = Worksheets("FeasibilityEvaluator").Range("Yield_on_Cost").Value
A155: ActiveCell.Offset(9, 0).Select
A156: ActiveCell.Value = Worksheets("FeasibilityEvaluator").Range("IRR").Value
A157: ActiveCell.Offset(-9, 1).Select
A158: Worksheets("FeasibilityEvaluator").Range("Price_Land_Context").Value = "Tier 4"
A159: ActiveCell.Value = Worksheets("FeasibilityEvaluator").Range("Yield_on_Cost").Value
A160: ActiveCell.Offset(9, 0).Select
A161: ActiveCell.Value = Worksheets("FeasibilityEvaluator").Range("IRR").Value
A162: ActiveCell.Offset(-9, 1).Select
A163: Worksheets("FeasibilityEvaluator").Range("Price_Land_Context").Value = "Tier 5"
A164: ActiveCell.Value = Worksheets("FeasibilityEvaluator").Range("Yield_on_Cost").Value
A165: ActiveCell.Offset(9, 0).Select
A166: ActiveCell.Value = Worksheets("FeasibilityEvaluator").Range("IRR").Value
A167: ActiveCell.Offset(-8, -4).Select
A170: End Sub
A174: Sub IncentiveMatrixFiller()
A177: Worksheets("Matrix").Range("Incentive_First_Cell").Activate
A178: 'High Rise'
A179: Worksheets("FeasibilityEvaluator").Range("Building_Type").Value = "High Rise"
A180: Worksheets("FeasibilityEvaluator").Range("Price_Land_Context").Value = "Tier 1"
A181: ActiveCell.Value = Worksheets("FeasibilityEvaluator").Range("Incentive_Yield_on_Cost").Value
A182: ActiveCell.Offset(9, 0).Select
A183: ActiveCell.Value = Worksheets("FeasibilityEvaluator").Range("Incentive_IRR").Value
A184: ActiveCell.Offset(-9, 1).Select
A185: Worksheets("FeasibilityEvaluator").Range("Price_Land_Context").Value = "Tier 2"
A186: ActiveCell.Value = Worksheets("FeasibilityEvaluator").Range("Incentive_Yield_on_Cost").Value
A187: ActiveCell.Offset(9, 0).Select
A188: ActiveCell.Value = Worksheets("FeasibilityEvaluator").Range("Incentive_IRR").Value
A189: ActiveCell.Offset(-9, 1).Select
A190: Worksheets("FeasibilityEvaluator").Range("Price_Land_Context").Value = "Tier 3"
A191: ActiveCell.Value = Worksheets("FeasibilityEvaluator").Range("Incentive_Yield_on_Cost").Value
A192: ActiveCell.Offset(9, 0).Select
A193: ActiveCell.Value = Worksheets("FeasibilityEvaluator").Range("Incentive_IRR").Value
A194: ActiveCell.Offset(-9, 1).Select
A195: Worksheets("FeasibilityEvaluator").Range("Price_Land_Context").Value = "Tier 4"
A196: ActiveCell.Value = Worksheets("FeasibilityEvaluator").Range("Incentive_Yield_on_Cost").Value
A197: ActiveCell.Offset(9, 0).Select
A198: ActiveCell.Value = Worksheets("FeasibilityEvaluator").Range("Incentive_IRR").Value
A199: ActiveCell.Offset(-9, 1).Select
A200: Worksheets("FeasibilityEvaluator").Range("Price_Land_Context").Value = "Tier 5"
A201: ActiveCell.Value = Worksheets("FeasibilityEvaluator").Range("Incentive_Yield_on_Cost").Value
A202: ActiveCell.Offset(9, 0).Select
A203: ActiveCell.Value = Worksheets("FeasibilityEvaluator").Range("Incentive_IRR").Value
A204: ActiveCell.Offset(-8, -4).Select
A206: Worksheets("FeasibilityEvaluator").Range("Building_Type").Value = "Mid Rise"
A207: Worksheets("FeasibilityEvaluator").Range("Price_Land_Context").Value = "Tier 1"
A208: ActiveCell.Value = Worksheets("FeasibilityEvaluator").Range("Incentive_Yield_on_Cost").Value
A209: ActiveCell.Offset(9, 0).Select
A210: ActiveCell.Value = Worksheets("FeasibilityEvaluator").Range("Incentive_IRR").Value
A211: ActiveCell.Offset(-9, 1).Select
A212: Worksheets("FeasibilityEvaluator").Range("Price_Land_Context").Value = "Tier 2"
A213: ActiveCell.Value = Worksheets("FeasibilityEvaluator").Range("Incentive_Yield_on_Cost").Value
A214: ActiveCell.Offset(9, 0).Select
A215: ActiveCell.Value = Worksheets("FeasibilityEvaluator").Range("Incentive_IRR").Value
... 163 more rows
